Workbook

Sheet Topics
A1: VLOOKUP with COLUMNS or ROWS
A2: VLOOKUP Tax
A3: VLOOKUP conditional Formatting
A4: LOOKUP horizontal or vertical
A5: LOOKUP Last Value
A6: MATCH to find Ordinal Position
A7: MATCH to find Ordinal Position for Row and Column Header
A8: INDEX 2 way lookup to find commission rate
A9: MATCH to ask is record in other table
A10: MATCH to ask is record NOT in other table
A11: INDEX 1 way lookup Left (1 way lookup - row number)
A12: INDEX & MATCH & MAX to lookup High Sales Name (1 way lookup column number)
A13: INDEX & MATCH & array to lookup name associated (1 way lookup - row number)
A14: INDEX & MATCH Whole Column
A15: INDEX & MATCH Whole Row
A16: INDEX & MATCH to find first non-blank
A17: CHOOSE to select different LOOKUP Tables

Sheet V(1)
A1: Account# | B1: Fname | C1: Lname | D1: Balance | E1: E-mail | H1: Account# | I1: Fname | J1: Lname | K1: Balance | L1: E-mail
A2: 1258-DaDo-7418 | B2: Danielle | C2: Dowell | D2: 4191.56 | E2: DaDo@gmail.com
A3: 1258-ViHo-1321 | B3: Victor | C3: Horvath | D3: 3676.61 | E3: ViHo@gmail.com
A4: 1258-HoSh-4750 | B4: Howard | C4: Shah | D4: 7350.44 | E4: HoSh@gmail.com | G4: Account#
A5: 1258-MaKo-6449 | B5: Mark | C5: Koehler | D5: 1367.36 | E5: MaKo@gmail.com | G5: Fname
A6: 1258-DeSt-7389 | B6: Debbie | C6: Stephen | D6: 3196.24 | E6: DeSt@gmail.com | G6: Lname
A7: 1258-KuWe-1748 | B7: Kurt | C7: Weckerly | D7: 7052.93 | E7: KuWe@gmail.com | G7: Balance
A8: 1258-GuSu-6102 | B8: Guy | C8: Sur | D8: 1445.17 | E8: GuSu@gmail.com | G8: E-mail
A9: 1258-OdLa-8740 | B9: Odessa | C9: Lauria | D9: 7812.45 | E9: OdLa@gmail.com
A10: 1258-ElRh-4436 | B10: Elinor | C10: Rhames | D10: 6225.46 | E10: ElRh@gmail.com
A11: 1258-NeSu-3274 | B11: Neva | C11: Sumler | D11: 4749.54 | E11: NeSu@gmail.com
A12: 1258-TyBr-8211 | B12: Tyrone | C12: Brite | D12: 6943.25 | E12: TyBr@gmail.com
A13: 1258-JaSe-8984 | B13: Javier | C13: Segers | D13: 8101.48 | E13: JaSe@gmail.com
A14: 1258-ClWi-5671 | B14: Clare | C14: Wimbush | D14: 6647.43 | E14: ClWi@gmail.com
A15: 1258-HiHi-3444 | B15: Hillary | C15: Hillen | D15: 5095.71 | E15: HiHi@gmail.com
A16: 1258-MaZo-8107 | B16: Mathew | C16: Zobel | D16: 6533.32 | E16: MaZo@gmail.com
A17: 1258-JeSo-6445 | B17: Jeanie | C17: Solley | D17: 4790.28 | E17: JeSo@gmail.com
A18: 1258-MaLe-7052 | B18: Marcie | C18: Levis | D18: 3611.78 | E18: MaLe@gmail.com
A19: 1258-ZeSe-6140 | B19: Zelma | C19: Semones | D19: 1844.15 | E19: ZeSe@gmail.com
A20: 1258-DaCa-8640 | B20: Darryl | C20: Canela | D20: 8910.2 | E20: DaCa@gmail.com
A21: 1258-JuGo-1604 | B21: Julio | C21: Gondek | D21: 7341.38 | E21: JuGo@gmail.com
A22: 1258-LoSt-8418 | B22: Louisa | C22: Strecker | D22: 7140.8 | E22: LoSt@gmail.com
A23: 1258-JaCl-8766 | B23: Javier | C23: Claflin | D23: 5994.36 | E23: JaCl@gmail.com
A24: 1258-AnEv-6862 | B24: Annabelle | C24: Everest | D24: 1556.44 | E24: AnEv@gmail.com
A25: 1258-ElMe-1003 | B25: Elinor | C25: Meinke | D25: 6420.78 | E25: ElMe@gmail.com
A26: 1258-MaOp-8230 | B26: Max | C26: Opp | D26: 1989.48 | E26: MaOp@gmail.com
A27: 1258-TeOs-1454 | B27: Ted | C27: Oscar | D27: 8832.36 | E27: TeOs@gmail.com
A28: 1258-LoDe-6705 | B28: Lonnie | C28: Debus | D28: 1623.93 | E28: LoDe@gmail.com
A29: 1258-TaWa-4457 | B29: Tania | C29: Warburton | D29: 7312.21 | E29: TaWa@gmail.com
A30: 1258-HuPa-4126 | B30: Hugh | C30: Patron | D30: 7792.32 | E30: HuPa@gmail.com
A31: 1258-KeCa-5697 | B31: Kelly | C31: Carn | D31: 4898.4 | E31: KeCa@gmail.com
A32: 1258-JaEp-1979 | B32: Jamie | C32: Epperly | D32: 1810.45 | E32: JaEp@gmail.com
A33: 1258-ClMe-7851 | B33: Clinton | C33: Mellen | D33: 2813.82 | E33: ClMe@gmail.com
A34: 1258-JeKa-3017 | B34: Jessie | C34: Kappler | D34: 1135.83 | E34: JeKa@gmail.com
A35: 1258-JeKa-3825 | B35: Jessie | C35: Kappler | D35: 6875.03 | E35: JeKa@gmail.com

Sheet V(1an)
A1: Account# | B1: Fname | C1: Lname | D1: Balance | E1: E-mail | H1: Account# | I1: Fname | J1: Lname | K1: Balance | L1: E-mail
A2: 1258-DaDo-7418 | B2: Danielle | C2: Dowell | D2: 4191.56 | E2: DaDo@gmail.com | H2: 1258-HoSh-4750 | I2: =VLOOKUP($H2,$A$2:$E$35,COLUMNS($H2:I2),0) -> Howard | J2: =VLOOKUP($H2,$A$2:$E$35,COLUMNS($H2:J2),0) -> Shah | K2: =VLOOKUP($H2,$A$2:$E$35,COLUMNS($H2:K2),0) -> 7350.44 | L2: =VLOOKUP($H2,$A$2:$E$35,COLUMNS($H2:L2),0) -> HoSh@gmail.com
A3: 1258-ViHo-1321 | B3: Victor | C3: Horvath | D3: 3676.61 | E3: ViHo@gmail.com
A4: 1258-HoSh-4750 | B4: Howard | C4: Shah | D4: 7350.44 | E4: HoSh@gmail.com | G4: Account# | H4: =H2 -> 1258-HoSh-4750 | J4: =TRANSPOSE(H2:L2)=H4:H8 -> TRUE
A5: 1258-MaKo-6449 | B5: Mark | C5: Koehler | D5: 1367.36 | E5: MaKo@gmail.com | G5: Fname | H5: =VLOOKUP(H$4,$A$2:$E$35,ROWS(H$4:H5),0) -> Howard | J5: TRUE
A6: 1258-DeSt-7389 | B6: Debbie | C6: Stephen | D6: 3196.24 | E6: DeSt@gmail.com | G6: Lname | H6: =VLOOKUP(H$4,$A$2:$E$35,ROWS(H$4:H6),0) -> Shah | J6: TRUE
A7: 1258-KuWe-1748 | B7: Kurt | C7: Weckerly | D7: 7052.93 | E7: KuWe@gmail.com | G7: Balance | H7: =VLOOKUP(H$4,$A$2:$E$35,ROWS(H$4:H7),0) -> 7350.44 | J7: TRUE
A8: 1258-GuSu-6102 | B8: Guy | C8: Sur | D8: 1445.17 | E8: GuSu@gmail.com | G8: E-mail | H8: =VLOOKUP(H$4,$A$2:$E$35,ROWS(H$4:H8),0) -> HoSh@gmail.com | J8: TRUE
A9: 1258-OdLa-8740 | B9: Odessa | C9: Lauria | D9: 7812.45 | E9: OdLa@gmail.com
A10: 1258-ElRh-4436 | B10: Elinor | C10: Rhames | D10: 6225.46 | E10: ElRh@gmail.com
A11: 1258-NeSu-3274 | B11: Neva | C11: Sumler | D11: 4749.54 | E11: NeSu@gmail.com
A12: 1258-TyBr-8211 | B12: Tyrone | C12: Brite | D12: 6943.25 | E12: TyBr@gmail.com
A13: 1258-JaSe-8984 | B13: Javier | C13: Segers | D13: 8101.48 | E13: JaSe@gmail.com
A14: 1258-ClWi-5671 | B14: Clare | C14: Wimbush | D14: 6647.43 | E14: ClWi@gmail.com
A15: 1258-HiHi-3444 | B15: Hillary | C15: Hillen | D15: 5095.71 | E15: HiHi@gmail.com
A16: 1258-MaZo-8107 | B16: Mathew | C16: Zobel | D16: 6533.32 | E16: MaZo@gmail.com
A17: 1258-JeSo-6445 | B17: Jeanie | C17: Solley | D17: 4790.28 | E17: JeSo@gmail.com
A18: 1258-MaLe-7052 | B18: Marcie | C18: Levis | D18: 3611.78 | E18: MaLe@gmail.com
A19: 1258-ZeSe-6140 | B19: Zelma | C19: Semones | D19: 1844.15 | E19: ZeSe@gmail.com
A20: 1258-DaCa-8640 | B20: Darryl | C20: Canela | D20: 8910.2 | E20: DaCa@gmail.com
A21: 1258-JuGo-1604 | B21: Julio | C21: Gondek | D21: 7341.38 | E21: JuGo@gmail.com
A22: 1258-LoSt-8418 | B22: Louisa | C22: Strecker | D22: 7140.8 | E22: LoSt@gmail.com
A23: 1258-JaCl-8766 | B23: Javier | C23: Claflin | D23: 5994.36 | E23: JaCl@gmail.com
A24: 1258-AnEv-6862 | B24: Annabelle | C24: Everest | D24: 1556.44 | E24: AnEv@gmail.com
A25: 1258-ElMe-1003 | B25: Elinor | C25: Meinke | D25: 6420.78 | E25: ElMe@gmail.com
A26: 1258-MaOp-8230 | B26: Max | C26: Opp | D26: 1989.48 | E26: MaOp@gmail.com
A27: 1258-TeOs-1454 | B27: Ted | C27: Oscar | D27: 8832.36 | E27: TeOs@gmail.com
A28: 1258-LoDe-6705 | B28: Lonnie | C28: Debus | D28: 1623.93 | E28: LoDe@gmail.com
A29: 1258-TaWa-4457 | B29: Tania | C29: Warburton | D29: 7312.21 | E29: TaWa@gmail.com
A30: 1258-HuPa-4126 | B30: Hugh | C30: Patron | D30: 7792.32 | E30: HuPa@gmail.com
A31: 1258-KeCa-5697 | B31: Kelly | C31: Carn | D31: 4898.4 | E31: KeCa@gmail.com
A32: 1258-JaEp-1979 | B32: Jamie | C32: Epperly | D32: 1810.45 | E32: JaEp@gmail.com
A33: 1258-ClMe-7851 | B33: Clinton | C33: Mellen | D33: 2813.82 | E33: ClMe@gmail.com
A34: 1258-JeKa-3017 | B34: Jessie | C34: Kappler | D34: 1135.83 | E34: JeKa@gmail.com
A35: 1258-JeKa-3825 | B35: Jessie | C35: Kappler | D35: 6875.03 | E35: JeKa@gmail.com

Sheet V(2)
A1: Corporate Tax Table
A2: VLOOKUP Reference | B2: Over - | C2: But Not Over | D2: Tax Amount From Previous Bracket | E2: Tax Rate For Remaining Amount
A3: 0 | B3: 0 | C3: 50000 | E3: 0.15
A4: =B4+1 -> 50001 | B4: =C3 -> 50000 | C4: 75000 | D4: =E3*C3 -> 7500 | E4: 0.25
A5: 75001 | B5: 75000 | C5: 100000 | D5: =D4+(C4-C3)*E4 -> 13750 | E5: 0.34
A6: 100001 | B6: 100000 | C6: 335000 | D6: 22250 | E6: 0.39
A7: 335001 | B7: 335000 | C7: 10000000 | D7: 113900 | E7: 0.34
A8: 10000001 | B8: 10000000 | C8: 15000000 | D8: 3400000 | E8: 0.35
A9: 15000001 | B9: 15000000 | C9: 18333333 | D9: 5150000 | E9: 0.38
A10: 18333334 | B10: 18333333 | D10: 6416666.54 | E10: 0.35
A12: Manufacturers Plus
A13: Income Statement
A14: Projected Net Income For The Years Ended December 31
B16: 2003 | C16: =B16+1 -> 2004 | D16: =C16+1 -> 2005 | E16: =D16+1 -> 2006 | F16: =E16+1 -> 2007 | G16: =F16+1 -> 2008
A17: Net Revenues | B17: 450000 | C17: =B17*(1+$B28) -> 495000 | D17: 544500 | E17: 598950 | F17: 658845 | G17: 724729.5
A18: Expenses | B18: 500000 | C18: 510000 | D18: 520200 | E18: 530604 | F18: 541216.08 | G18: 552040.4016
A19: Net Income Before Income Taxes | B19: =B17-B18 -> -50000 | C19: -15000 | D19: 24300 | E19: 68346 | F19: 117628.92 | G19: 172689.0984
A20: Tax Expense
A21: Net Income | B21: =B19-B20 -> -50000 | C21: -15000 | D21: 24300 | E21: 68346 | F21: 117628.92 | G21: 172689.0984
A27: Assumptions
A28: Increase In Sales | B28: 0.1
A29: Increase in Expenses | B29: 0.02

Sheet V(2an)
A1: Corporate Tax Table
A2: VLOOKUP Reference | B2: Over - | C2: But Not Over | D2: Tax Amount From Previous Bracket | E2: Tax Rate For Remaining Amount
A3: 0 | B3: 0 | C3: 50000 | E3: 0.15
A4: =B4+1 -> 50001 | B4: =C3 -> 50000 | C4: 75000 | D4: =E3*C3 -> 7500 | E4: 0.25
A5: 75001 | B5: 75000 | C5: 100000 | D5: =D4+(C4-C3)*E4 -> 13750 | E5: 0.34
A6: 100001 | B6: 100000 | C6: 335000 | D6: 22250 | E6: 0.39
A7: 335001 | B7: 335000 | C7: 10000000 | D7: 113900 | E7: 0.34
A8: 10000001 | B8: 10000000 | C8: 15000000 | D8: 3400000 | E8: 0.35
A9: 15000001 | B9: 15000000 | C9: 18333333 | D9: 5150000 | E9: 0.38
A10: 18333334 | B10: 18333333 | D10: 6416666.54 | E10: 0.35
A12: Manufacturers Plus
A13: Income Statement
A14: Projected Net Income For The Years Ended December 31
B16: 2003 | C16: =B16+1 -> 2004 | D16: =C16+1 -> 2005 | E16: =D16+1 -> 2006 | F16: =E16+1 -> 2007 | G16: =F16+1 -> 2008
A17: Net Revenues | B17: 450000 | C17: =B17*(1+$B28) -> 495000 | D17: 544500 | E17: 598950 | F17: 658845 | G17: 724729.5
A18: Expenses | B18: 500000 | C18: 510000 | D18: 520200 | E18: 530604 | F18: 541216.08 | G18: 552040.4016
A19: Net Income Before Income Taxes | B19: =B17-B18 -> -50000 | C19: -15000 | D19: 24300 | E19: 68346 | F19: 117628.92 | G19: 172689.0984
A20: Tax Expense | B20: =IFERROR(VLOOKUP(B19,Tax,4)+(B19-VLOOKUP(B19,Tax,2))*VLOOKUP(B19,Tax,5),0) -> 0 | C20: 0 | D20: 3645 | E20: 12086.5 | F20: =IFERROR(VLOOKUP(F19,Tax,4)+(F19-VLOOKUP(F19,Tax,2))*VLOOKUP(F19,Tax,5),0) -> 29125.2788 | G20: 50598.74838
A21: Net Income | B21: =B19-B20 -> -50000 | C21: -15000 | D21: 20655 | E21: 56259.5 | F21: 88503.6412 | G21: 122090.35
F23: =D6+(F19-B6)*E6 -> 29125.2788
A27: Assumptions
A28: Increase In Sales | B28: 0.1
A29: Increase in Expenses | B29: 0.02

Sheet V(3)
C1: Product Commission Rate
C2: Pro1 | D2: Pro2 | E2: Pro3 | F2: Pro4 | G2: Pro5
A3: Sales | B3: 0 | C3: =(ROW()+COLUMN())/1000 -> 0.006 | D3: 0.007 | E3: 0.008 | F3: 0.009 | G3: 0.01
B4: =B3+1500 -> 1500 | C4: 0.007 | D4: 0.008 | E4: 0.009 | F4: 0.01 | G4: 0.011
B5: =B4+1500 -> 3000 | C5: 0.008 | D5: 0.009 | E5: 0.01 | F5: 0.011 | G5: 0.012
B6: 4500 | C6: 0.009 | D6: 0.01 | E6: 0.011 | F6: 0.012 | G6: 0.013
B7: 6000 | C7: 0.01 | D7: 0.011 | E7: 0.012 | F7: 0.013 | G7: 0.014
B8: 7500 | C8: 0.011 | D8: 0.012 | E8: 0.013 | F8: 0.014 | G8: 0.015
B9: 9000 | C9: 0.012 | D9: 0.013 | E9: 0.014 | F9: 0.015 | G9: 0.016
B11: Pro | C11: Pro3
B12: =A3 -> Sales | C12: 5000

Sheet V(3an)
C1: Product Commission Rate
C2: Pro1 | D2: Pro2 | E2: Pro3 | F2: Pro4 | G2: Pro5
A3: Sales | B3: 0 | C3: =(ROW()+COLUMN())/1000 -> 0.006 | D3: 0.007 | E3: 0.008 | F3: 0.009 | G3: 0.01
B4: =B3+1500 -> 1500 | C4: 0.007 | D4: 0.008 | E4: 0.009 | F4: 0.01 | G4: 0.011
B5: =B4+1500 -> 3000 | C5: 0.008 | D5: 0.009 | E5: 0.01 | F5: 0.011 | G5: 0.012
B6: 4500 | C6: 0.009 | D6: 0.01 | E6: 0.011 | F6: 0.012 | G6: 0.013
B7: 6000 | C7: 0.01 | D7: 0.011 | E7: 0.012 | F7: 0.013 | G7: 0.014
B8: 7500 | C8: 0.011 | D8: 0.012 | E8: 0.013 | F8: 0.014 | G8: 0.015
B9: 9000 | C9: 0.012 | D9: 0.013 | E9: 0.014 | F9: 0.015 | G9: 0.016
B11: Pro | C11: Pro3
B12: =A3 -> Sales | C12: 5000

Sheet L(1)
A1: V | D1: H
A2: 0 | B2: 0 | D2: 0 | E2: 100 | F2: 500 | G2: 1000
A3: 100 | B3: 0.01 | D3: 0 | E3: 0.01 | F3: 0.03 | G3: 0.05
A4: 500 | B4: 0.03
A5: 1000 | B5: 0.05
A7: Sales | B7: 555
A8: Tax | C8: from vertical table
A9: Tax | C9: from horizontal table
H11: Stock Value at End of Week
A12: LOOKUP: | G12: Last Value Entered | H12: Week 1 | I12: Week 2 | J12: Week 3 | K12: Week 4 | L12: Week 5 | M12: Week 6 | N12: Week 7 | O12: Week 8 | P12: Week 9 | Q12: Week 10 | R12: Week 11 | S12: Week 12 | T12: Week 13 | U12: Week 14 | V12: Week 15 | W12: Week 16 | X12: Week 17 | Y12: Week 18 | Z12: Week 19 | AA12: Week 20 | AB12: Week 21 | AC12: Week 22 | AD12: Week 23 | AE12: Week 24 | AF12: Week 25 | AG12: Week 26 | AH12: Week 27 | AI12: Week 28 | AJ12: Week 29 | AK12: Week 30 | AL12: Week 31 | AM12: Week 32 | AN12: Week 33 | AO12: Week 34
A13: 1) 1st column sorted ascending | H13: 55 | I13: 57 | K13: 49 | M13: 40 | N13: 38.5 | O13: 39 | P13: 38.75
A14: 2) only does approximate lookup
A15: 3) always returns value from last column / row | I15: Stock Value at End of Week
A16: 4) can do V or H Lookup | I16: Week 1 | J16: 5
A17: 5) can have 2 vectors | G17: Last Value Entered | I17: Week 2 | J17: 3
A18: 6) lookup last value in row or column | I18: Week 3 | J18: 4.2
I19: Week 4 | J19: 4
I20: Week 5 | J20: 3.99
I21: Week 6
I22: Week 7 | J22: 4.15
I23: Week 8
I24: Week 9
I25: Week 10
I26: Week 11
I27: Week 12
I28: Week 13
I29: Week 14
I30: Week 15
I31: Week 16
I32: Week 17
I33: Week 18
I34: Week 19
I35: Week 20
I36: Week 21
I37: Week 22
I38: Week 23
I39: Week 24
I40: Week 25
I41: Week 26
I42: Week 27 | J42: 6.95
I43: Week 28
I44: Week 29
I45: Week 30
I46: Week 31
I47: Week 32
I48: Week 33
I49: Week 34
I50: Week 35
I51: Week 36
I52: Week 37
I53: Week 38
I54: Week 39
I55: Week 40
I56: Week 41
I57: Week 42
I58: Week 43
I59: Week 44

Sheet L(1an)
A1: V | D1: H
A2: 0 | B2: 0 | D2: 0 | E2: 100 | F2: 500 | G2: 1000
A3: 100 | B3: 0.01 | D3: 0 | E3: 0.01 | F3: 0.03 | G3: 0.05
A4: 500 | B4: 0.03
A5: 1000 | B5: 0.05
A7: Sales | B7: 555
A8: Tax | B8: =LOOKUP(B7,A2:B5) -> 0.03 | C8: from vertical table
A9: Tax | B9: =LOOKUP(B7,D2:G3) -> 0.03 | C9: from horizontal table
H11: Stock Value at End of Week
A12: LOOKUP: | G12: Last Value Entered | H12: Week 1 | I12: Week 2 | J12: Week 3 | K12: Week 4 | L12: Week 5 | M12: Week 6 | N12: Week 7 | O12: Week 8 | P12: Week 9 | Q12: Week 10 | R12: Week 11 | S12: Week 12 | T12: Week 13 | U12: Week 14 | V12: Week 15 | W12: Week 16 | X12: Week 17 | Y12: Week 18 | Z12: Week 19 | AA12: Week 20 | AB12: Week 21 | AC12: Week 22 | AD12: Week 23 | AE12: Week 24 | AF12: Week 25 | AG12: Week 26 | AH12: Week 27 | AI12: Week 28 | AJ12: Week 29 | AK12: Week 30 | AL12: Week 31 | AM12: Week 32 | AN12: Week 33 | AO12: Week 34
A13: 1) 1st column sorted ascending | G13: =LOOKUP(9.99999999999999E+307,H13:AO13) -> 38.75 | H13: 55 | I13: 57 | K13: 49 | M13: 40 | N13: 38.5 | O13: 39 | P13: 38.75
A14: 2) only does approximate lookup | G14: =HLOOKUP(9.99999999999999E+307,H13:AO13,1) -> 38.75
A15: 3) always returns value from last column / row | I15: Stock Value at End of Week
A16: 4) can do V or H Lookup | I16: Week 1 | J16: 5
A17: 5) can have 2 vectors | G17: Last Value Entered | I17: Week 2 | J17: 3
A18: 6) lookup last value in row or column | G18: =LOOKUP(9.99999999999999E+307,J16:J59) -> 6.95 | I18: Week 3 | J18: 4.2
G19: =VLOOKUP(9.99999999999999E+307,J16:J59,1) -> 6.95 | I19: Week 4 | J19: 4
I20: Week 5 | J20: 3.99
I21: Week 6
I22: Week 7 | J22: 4.15
I23: Week 8
I24: Week 9
I25: Week 10
I26: Week 11
I27: Week 12
I28: Week 13
I29: Week 14
I30: Week 15
I31: Week 16
I32: Week 17
I33: Week 18
I34: Week 19
I35: Week 20
I36: Week 21
I37: Week 22
I38: Week 23
I39: Week 24
I40: Week 25
I41: Week 26
I42: Week 27 | J42: 6.95
I43: Week 28
I44: Week 29
I45: Week 30
I46: Week 31
I47: Week 32
I48: Week 33
I49: Week 34
I50: Week 35
I51: Week 36
I52: Week 37
I53: Week 38
I54: Week 39
I55: Week 40
I56: Week 41
I57: Week 42
I58: Week 43
I59: Week 44

Sheet M&I(1)
A1: =ROWS(A$1:A1)&")" -> 1) | B1: The MATCH function looks up a value and tells you what relative (ordinal) position it is in the list. | I1: If match_type is -1, MATCH finds the smallest value that is greater than or equal to lookup_value. Lookup_array must be placed in descending order: TRUE, FALSE, Z-A, ...2, 1, 0, -1, -2, ..., and so on.
A2: =ROWS(A$1:A2)&")" -> 2) | B2: The list can be horizontal or vertical. | I2: If match_type is 1, MATCH finds the largest value that is less than or equal to lookup_value. Lookup_array must be placed in ascending order: ...-2, -1, 0, 1, 2, ..., A-Z, FALSE, TRUE.
A3: =ROWS(A$1:A3)&")" -> 3) | B3: MATCH(lookup_value,lookup_array,match_type) | I3: If match_type is 0, MATCH finds the first value that is exactly equal to lookup_value. Lookup_array can be in any order.
A4: =ROWS(A$1:A4)&")" -> 4) | B4: Just like VLOOKUP, MATCH can do an approximate or exact match lookup. If match_type is omitted, it is assumed to be 1.
B6: Commission Table
B7: Product/SalesMade | C7: 500 | D7: 2000 | E7: 5000 | F7: 10000 | G7: 20000
B8: Pro1 | C8: =((ROW()+COLUMN())/100-0.05)/2 -> 0.03 | D8: 0.035 | E8: 0.04 | F8: 0.045 | G8: 0.05
B9: Pro2 | C9: 0.035 | D9: 0.04 | E9: 0.045 | F9: 0.05 | G9: 0.055
B10: Pro3 | C10: 0.04 | D10: 0.045 | E10: 0.05 | F10: 0.055 | G10: 0.06
B11: Pro4 | C11: 0.045 | D11: 0.05 | E11: 0.055 | F11: 0.06 | G11: 0.065
B12: Pro5 | C12: 0.05 | D12: 0.055 | E12: 0.06 | F12: 0.065 | G12: 0.07
B13: Pro6 | C13: 0.055 | D13: 0.06 | E13: 0.065 | F13: 0.07 | G13: 0.075
B14: Pro7 | C14: 0.06 | D14: 0.065 | E14: 0.07 | F14: 0.075 | G14: 0.08
B15: Pro8 | C15: 0.065 | D15: 0.07 | E15: 0.075 | F15: 0.08 | G15: 0.085
B16: Pro9 | C16: 0.07 | D16: 0.075 | E16: 0.08 | F16: 0.085 | G16: 0.09
B17: Pro10 | C17: 0.075 | D17: 0.08 | E17: 0.085 | F17: 0.09 | G17: 0.095
D19: Relative (ordinal) position:
B20: Select Item >> | C20: Pro3
B21: Type Sales Amount >> | C21: 50087.5
A23: 5) | B23: INDEX can do 2 way lookup. It can find the intersection of a row and column inside a table. This is in comparision to the VLOOKUP that only does a 1 way lookup, in that it only looks through the first column of a table and finds a certain row.
A24: 6) | B24: INDEX(array,row_num,column_num) The INDEX function has two possibilities - we will only use the first (because there is a better alternative (that we will see later using the CHOOSE function) for the second option.
A25: 7) | B25: INDEX is usually used with the MATCH function. The MATCH will give the INDEX the row and column number needed for the 2 way lookup.
A26: 8) | B26: INDEX can return a single value to a cell or a cell reference to a formula.
B28: Commission Table
B29: Product/SalesMade | C29: 500 | D29: 2000 | E29: 5000 | F29: 10000 | G29: 20000
B30: Pro1 | C30: =((ROW()+COLUMN())/100-0.05)/2 -> 0.14 | D30: 0.145 | E30: 0.15 | F30: 0.155 | G30: 0.16
B31: Pro2 | C31: 0.145 | D31: 0.15 | E31: 0.155 | F31: 0.16 | G31: 0.165
B32: Pro3 | C32: 0.15 | D32: 0.155 | E32: 0.16 | F32: 0.165 | G32: 0.17
B33: Pro4 | C33: 0.155 | D33: 0.16 | E33: 0.165 | F33: 0.17 | G33: 0.175
B34: Pro5 | C34: 0.16 | D34: 0.165 | E34: 0.17 | F34: 0.175 | G34: 0.18
B35: Pro6 | C35: 0.165 | D35: 0.17 | E35: 0.175 | F35: 0.18 | G35: 0.185
B36: Pro7 | C36: 0.17 | D36: 0.175 | E36: 0.18 | F36: 0.185 | G36: 0.19
B37: Pro8 | C37: 0.175 | D37: 0.18 | E37: 0.185 | F37: 0.19 | G37: 0.195
B38: Pro9 | C38: 0.18 | D38: 0.185 | E38: 0.19 | F38: 0.195 | G38: 0.2
B39: Pro10 | C39: 0.185 | D39: 0.19 | E39: 0.195 | F39: 0.2 | G39: 0.205
D41: Relative (ordinal) position:
B42: Select Item >> | C42: Pro3
B43: Type Sales Amount >> | C43: 50087.5
B44: Commission Rate:
B45: Commission Rate:
A46: a
B47: Total Commission
A52: Prospective Customer List
A53: List 1 | C53: List 2 | D53: Is Record in Other Table?
A54: Customer 63 | C54: Customer 63
A55: Customer 18 | C55: Customer 18
A56: Customer 37 | C56: Customer 43
A57: Customer 12 | C57: Customer 73
A58: Customer 73 | C58: Customer 76
A59: Customer 76 | C59: Customer 11
A60: Customer 72
A61: Customer 15 | C61: List 2 | D61: Is Record in NOT Other Table?
C62: Customer 63
C63: Customer 18
C64: Customer 43
C65: Customer 73
C66: Customer 76
C67: Customer 11

Sheet M&I(1an)
A1: =ROWS(A$1:A1)&")" -> 1) | B1: The MATCH function looks up a value and tells you what relative (ordinal) position it is in the list. | I1: If match_type is -1, MATCH finds the smallest value that is greater than or equal to lookup_value. Lookup_array must be placed in descending order: TRUE, FALSE, Z-A, ...2, 1, 0, -1, -2, ..., and so on.
A2: =ROWS(A$1:A2)&")" -> 2) | B2: The list can be horizontal or vertical. | I2: If match_type is 1, MATCH finds the largest value that is less than or equal to lookup_value. Lookup_array must be placed in ascending order: ...-2, -1, 0, 1, 2, ..., A-Z, FALSE, TRUE.
A3: =ROWS(A$1:A3)&")" -> 3) | B3: MATCH(lookup_value,lookup_array,match_type) | I3: If match_type is 0, MATCH finds the first value that is exactly equal to lookup_value. Lookup_array can be in any order.
A4: =ROWS(A$1:A4)&")" -> 4) | B4: Just like VLOOKUP, MATCH can do an approximate or exact match lookup. If match_type is omitted, it is assumed to be 1.
B6: Commission Table
B7: Product/SalesMade | C7: 500 | D7: 2000 | E7: 5000 | F7: 10000 | G7: 20000
B8: Pro1 | C8: =((ROW()+COLUMN())/100-0.05)/2 -> 0.03 | D8: 0.035 | E8: 0.04 | F8: 0.045 | G8: 0.05
B9: Pro2 | C9: 0.035 | D9: 0.04 | E9: 0.045 | F9: 0.05 | G9: 0.055
B10: Pro3 | C10: 0.04 | D10: 0.045 | E10: 0.05 | F10: 0.055 | G10: 0.06
B11: Pro4 | C11: 0.045 | D11: 0.05 | E11: 0.055 | F11: 0.06 | G11: 0.065
B12: Pro5 | C12: 0.05 | D12: 0.055 | E12: 0.06 | F12: 0.065 | G12: 0.07
B13: Pro6 | C13: 0.055 | D13: 0.06 | E13: 0.065 | F13: 0.07 | G13: 0.075
B14: Pro7 | C14: 0.06 | D14: 0.065 | E14: 0.07 | F14: 0.075 | G14: 0.08
B15: Pro8 | C15: 0.065 | D15: 0.07 | E15: 0.075 | F15: 0.08 | G15: 0.085
B16: Pro9 | C16: 0.07 | D16: 0.075 | E16: 0.08 | F16: 0.085 | G16: 0.09
B17: Pro10 | C17: 0.075 | D17: 0.08 | E17: 0.085 | F17: 0.09 | G17: 0.095
D19: Relative (ordinal) position:
B20: Select Item >> | C20: Pro3 | D20: =MATCH(C20,B8:B17,0) -> 3
B21: Type Sales Amount >> | C21: 50087.5 | D21: =MATCH(C21,C7:G7) -> 5
A23: 5) | B23: INDEX can do 2 way lookup. It can find the intersection of a row and column inside a table. This is in comparision to the VLOOKUP that only does a 1 way lookup, in that it only looks through the first column of a table and finds a certain row.
A24: 6) | B24: INDEX(array,row_num,column_num) The INDEX function has two possibilities - we will only use the first (because there is a better alternative (that we will see later using the CHOOSE function) for the second option.
A25: 7) | B25: INDEX is usually used with the MATCH function. The MATCH will give the INDEX the row and column number needed for the 2 way lookup.
A26: 8) | B26: INDEX can return a single value to a cell or a cell reference to a formula.
B28: Commission Table
B29: Product/SalesMade | C29: 500 | D29: 2000 | E29: 5000 | F29: 10000 | G29: 20000
B30: Pro1 | C30: =((ROW()+COLUMN())/100-0.05)/2 -> 0.14 | D30: 0.145 | E30: 0.15 | F30: 0.155 | G30: 0.16
B31: Pro2 | C31: 0.145 | D31: 0.15 | E31: 0.155 | F31: 0.16 | G31: 0.165
B32: Pro3 | C32: 0.15 | D32: 0.155 | E32: 0.16 | F32: 0.165 | G32: 0.17
B33: Pro4 | C33: 0.155 | D33: 0.16 | E33: 0.165 | F33: 0.17 | G33: 0.175
B34: Pro5 | C34: 0.16 | D34: 0.165 | E34: 0.17 | F34: 0.175 | G34: 0.18
B35: Pro6 | C35: 0.165 | D35: 0.17 | E35: 0.175 | F35: 0.18 | G35: 0.185
B36: Pro7 | C36: 0.17 | D36: 0.175 | E36: 0.18 | F36: 0.185 | G36: 0.19
B37: Pro8 | C37: 0.175 | D37: 0.18 | E37: 0.185 | F37: 0.19 | G37: 0.195
B38: Pro9 | C38: 0.18 | D38: 0.185 | E38: 0.19 | F38: 0.195 | G38: 0.2
B39: Pro10 | C39: 0.185 | D39: 0.19 | E39: 0.195 | F39: 0.2 | G39: 0.205
D41: Relative (ordinal) position:
B42: Select Item >> | C42: Pro3 | D42: =MATCH(C42,B30:B39,0) -> 3
B43: Type Sales Amount >> | C43: 50087.5 | D43: =MATCH(C43,C29:G29) -> 5
B44: Commission Rate: | C44: =INDEX(C30:G39,D42,D43) -> 0.17
B45: Commission Rate: | C45: =INDEX(C30:G39,MATCH(C43,C29:G29),MATCH(C42,B30:B39,0)) -> 0.17
A46: a
B47: Total Commission | C47: =C43*INDEX(C30:G39,MATCH(C42,B30:B39,0),MATCH(C43,C29:G29)) -> 8514.875
A52: Prospective Customer List
A53: List 1 | C53: List 2 | D53: Is Record in Other Table?
A54: Customer 63 | C54: Customer 63 | D54: =ISNUMBER(MATCH(C54,$A$54:$A$61,0)) -> TRUE
A55: Customer 18 | C55: Customer 18 | D55: TRUE
A56: Customer 37 | C56: Customer 43 | D56: FALSE
A57: Customer 12 | C57: Customer 73 | D57: TRUE
A58: Customer 73 | C58: Customer 76 | D58: TRUE
A59: Customer 76 | C59: Customer 11 | D59: FALSE
A60: Customer 72
A61: Customer 15 | C61: List 2 | D61: Is Record in NOT Other Table?
C62: Customer 63 | D62: =ISNA(MATCH(C62,$A$54:$A$61,0)) -> FALSE
C63: Customer 18 | D63: FALSE
C64: Customer 43 | D64: TRUE
C65: Customer 73 | D65: FALSE
C66: Customer 76 | D66: FALSE
C67: Customer 11 | D67: TRUE

Sheet M&I(2)
A1: 9) | B1: INDEX & MATCH can do 1 way lookups that VLOOKUP cannot do.
A2: 10) | B2: INDEX & MATCH can do "lookup to the Left".
B4: Product | C4: ID# | D4: Price | F4: Invoice
B5: Pro1 | C5: 10002 | D5: 13
B6: Pro2 | C6: 10003 | D6: 15 | F6: ID | G6: Product | H6: Price | I6: Units | J6: Total
B7: Pro3 | C7: 10004 | D7: 15 | F7: 10004 | I7: 5 | J7: =I7*H7 -> 0
B8: Pro4 | C8: 10005 | D8: 14 | F8: 10005 | I8: 2 | J8: =I8*H8 -> 0
B9: Pro5 | C9: 10006 | D9: 15 | F9: 10006 | I9: 1 | J9: 0
I10: Total | J10: =SUM(J7:J9) -> 0
A12: 11) | B12: INDEX & MATCH High Sales Name (1 way lookup - looking up column number). If there are only columns, you can enter column number into the second argument (row_num).
B14: Sales Name | C14: Sioux | D14: Phil | E14: Chin | F14: Mo | G14: Sales Rep Who Got Highest Sales
B15: Day 1 | C15: =ROUND(RAND()*800+500,2) -> 653.67 | D15: 1079.76 | E15: 1263.59 | F15: 879.93
B16: Day 2 | C16: 1101.98 | D16: 611.81 | E16: 620.89 | F16: 1204.47
B17: Day 3 | C17: 1161.44 | D17: 1135.68 | E17: 726.5 | F17: 1102.9
B18: Day 4 | C18: 542.07 | D18: 1217.03 | E18: 1185.06 | F18: 592.34
B19: Day 5 | C19: 1019.03 | D19: 1142.37 | E19: 1239.06 | F19: 852.09
B20: Day 6 | C20: 692.3 | D20: 1065.05 | E20: 548.2 | F20: 710.69
B21: Day 7 | C21: 823.66 | D21: 1280.17 | E21: 657.68 | F21: 1142.75
A23: =ROWS(A$1:A12)&")" -> 12) | B23: INDEX & MATCH & array to lookup name associated. (1 way lookup - looking up row number)
A25: Sales 2008 | B25: Sales 2009 | C25: Name
A26: 69979 | B26: 100000 | C26: Suix
A27: 92964 | B27: 101998 | C27: Fred
A28: 79522 | B28: 85916 | C28: Chin
A29: 80956 | B29: 81000 | C29: Ali
A30: 90906 | B30: 99368 | C30: Jeff
B33: Max Improvement
B34: Name

Sheet M&I(2an)
A1: 9) | B1: INDEX & MATCH can do 1 way lookups that VLOOKUP cannot do.
A2: 10) | B2: INDEX & MATCH can do "lookup to the Left".
B4: Product | C4: ID# | D4: Price | F4: Invoice
B5: Pro1 | C5: 10002 | D5: 13
B6: Pro2 | C6: 10003 | D6: 15 | F6: ID | G6: Product | H6: Price | I6: Units | J6: Total
B7: Pro3 | C7: 10004 | D7: 15 | F7: 10004 | G7: =INDEX($B$5:$B$9,MATCH(F7,$C$5:$C$9,0)) -> Pro3 | H7: =VLOOKUP(F7,C5:D9,2,0) -> 15 | I7: 5 | J7: =I7*H7 -> 75
B8: Pro4 | C8: 10005 | D8: 14 | F8: 10005 | G8: =INDEX($B$5:$B$9,MATCH(F8,$C$5:$C$9,0)) -> Pro4 | H8: =VLOOKUP(F8,C6:D10,2,0) -> 14 | I8: 2 | J8: =I8*H8 -> 28
B9: Pro5 | C9: 10006 | D9: 15 | F9: 10006 | G9: Pro5 | H9: 15 | I9: 1 | J9: 15
I10: Total | J10: =SUM(J7:J9) -> 118
A12: 11) | B12: INDEX & MATCH High Sales Name (1 way lookup - looking up column number). If there are only columns, you can enter column number into the second argument (row_num).
B14: Sales Name | C14: Sioux | D14: Phil | E14: Chin | F14: Mo | G14: Sales Rep Who Got Highest Sales
B15: Day 1 | C15: =ROUND(RAND()*800+500,2) -> 1266.48 | D15: 718.64 | E15: 1148.92 | F15: 655.81 | G15: =INDEX($C$14:$F$14,MATCH(MAX(C15:F15),C15:F15,0)) -> Sioux
B16: Day 2 | C16: 719.18 | D16: 539.64 | E16: 744.61 | F16: 792.27 | G16: Mo
B17: Day 3 | C17: 1188.92 | D17: 1089.06 | E17: 1186.55 | F17: 953.86 | G17: Sioux
B18: Day 4 | C18: 1237.86 | D18: 893.22 | E18: 1088.86 | F18: 1014.93 | G18: Sioux
B19: Day 5 | C19: 950.42 | D19: 985.44 | E19: 1255.97 | F19: 1105.28 | G19: Chin
B20: Day 6 | C20: 907.95 | D20: 878.33 | E20: 665.08 | F20: 842.58 | G20: Sioux
B21: Day 7 | C21: 1132.06 | D21: 1174.9 | E21: 504.21 | F21: 988.92 | G21: Phil
A23: =ROWS(A$1:A12)&")" -> 12) | B23: INDEX & MATCH & array to lookup name associated. (1 way lookup - looking up row number)
A25: Sales 2008 | B25: Sales 2009 | C25: Name
A26: 69979 | B26: 100000 | C26: Suix
A27: 92964 | B27: 101998 | C27: Fred
A28: 79522 | B28: 85916 | C28: Chin
A29: 80956 | B29: 81000 | C29: Ali
A30: 90906 | B30: 99368 | C30: Jeff
B33: Max Improvement | C33: =MAX(B26:B30-A26:A30) -> 30021
B34: Name | C34: =IF(C33="","",INDEX(C26:C30,MATCH(C33,B26:B30-A26:A30,0))) -> Suix

Sheet M&I(3)
A1: 13) | B1: INDEX & MATCH to lookup whole column. A 0 (zero) in the row_num means take the whole column or "all the rows".
B3: Jan | C3: Feb | D3: Mar | E3: April | G3: Month: | H3: April
B4: 1081.95 | C4: 619.12 | D4: 707.45 | E4: 756.59 | G4: Total
B5: 913.1 | C5: 730.87 | D5: 969.9 | E5: 609.61
B6: 1212.38 | C6: 840.17 | D6: 1222.96 | E6: 577.57
B7: 735.08 | C7: 560.68 | D7: 1096.3 | E7: 1070.39
B8: 685.48 | C8: 1225.95 | D8: 596.01 | E8: 1009.88
B9: 1088.7 | C9: 793.41 | D9: 1010.52 | E9: 1105.98
B10: 1169.79 | C10: 983.38 | D10: 1274.46 | E10: 1287.75
B11: 1248.8 | C11: 518.23 | D11: 946.49 | E11: 1199.03
B12: 1156.68 | C12: 578.71 | D12: 712.75 | E12: 1223
B13: 651.29 | C13: 1130.21 | D13: 637.21 | E13: 1285.61
B14: 810.08 | C14: 843.39 | D14: 735.55 | E14: 970.38
B15: 1212.19 | C15: 534.34 | D15: 1096.9 | E15: 953.78
B16: 549 | C16: 747.09 | D16: 723.65 | E16: 712.64
A18: 14) | B18: INDEX & MATCH to lookup whole row. A 0 (zero) in the column_num means take the whole row or "all the columns".
B20: Week | C20: Ratings Team Member 1 | D20: Ratings Team Member 2 | E20: Ratings Team Member 3 | F20: Ratings Team Member 4 | G20: Ratings Team Member 5 | H20: Ratings Team Member 6 | I20: Ratings Team Member 7 | J20: Ratings Team Member 8
B21: Week 1 | C21: 4.51 | D21: 4.11 | E21: 4.81 | F21: 2.78 | G21: 4.89 | H21: 5.1 | I21: 1.23 | J21: 2.26
B22: Week 2 | C22: 3.47 | D22: 1.04 | E22: 3.42 | F22: 4.7 | G22: 5.64 | H22: 1.1 | I22: 3.3 | J22: 5.08
B23: Week 3 | C23: 4.52 | D23: 3.45 | E23: 3.84 | F23: 2.76 | G23: 1.7 | H23: 1.61 | I23: 3.3 | J23: 4.92
B24: Week 4 | C24: 1.47 | D24: 1.99 | E24: 5.52 | F24: 2.34 | G24: 3.26 | H24: 1.7 | I24: 5.6 | J24: 4.09
B25: Week 5 | C25: 5.68 | D25: 3.72 | E25: 4.37 | F25: 2.46 | G25: 4.56 | H25: 1.59 | I25: 5.5 | J25: 1.2
B26: Week 6 | C26: 1.36 | D26: 3.52 | E26: 2.05 | F26: 1.61 | G26: 1.61 | H26: 2.21 | I26: 3.62 | J26: 4.72
B27: Week 7 | C27: 3.07 | D27: 3.38 | E27: 4.26 | F27: 5.25 | G27: 2.64 | H27: 2.59 | I27: 4.63 | J27: 5.52
B28: Week 8 | C28: 1.06 | D28: 5.04 | E28: 4.85 | F28: 3.54 | G28: 4.38 | H28: 4.21 | I28: 1.54 | J28: 3.66
B29: Week 9 | C29: 1.45 | D29: 3.77 | E29: 1.12 | F29: 5.21 | G29: 3.79 | H29: 1.87 | I29: 4.29 | J29: 2.1
B30: Week 10 | C30: 2.1 | D30: 3.34 | E30: 5.5 | F30: 3.11 | G30: 3.1 | H30: 1.57 | I30: 3.76 | J30: 1.81
B31: Week 11 | C31: 1.77 | D31: 4.63 | E31: 2.58 | F31: 5.3 | G31: 5.14 | H31: 2.1 | I31: 1.73 | J31: 4.8
B32: Week 12 | C32: 2.93 | D32: 2 | E32: 3.25 | F32: 3.41 | G32: 1.41 | H32: 4.77 | I32: 5.98 | J32: 4.78
B33: Week 13 | C33: 5.14 | D33: 4.03 | E33: 1.33 | F33: 4.47 | G33: 4.75 | H33: 3.88 | I33: 1.03 | J33: 4.34
B34: Week 14 | C34: 3.51 | D34: 3.56 | E34: 4.51 | F34: 5.27 | G34: 4.75 | H34: 5.78 | I34: 1.02 | J34: 1.74
B35: Week 15 | C35: 1.48 | D35: 5.37 | E35: 1.66 | F35: 3.99 | G35: 5.08 | H35: 5.5 | I35: 1.53 | J35: 1.55
B36: Week 16 | C36: 4.82 | D36: 5.14 | E36: 5.31 | F36: 5.64 | G36: 5.77 | H36: 2.73 | I36: 4.34 | J36: 5.32
B38: Week | C38: Week 3

Sheet M&I(3an)
A1: 13) | B1: INDEX & MATCH to lookup whole column. A 0 (zero) in the row_num means take the whole column or "all the rows".
B3: Jan | C3: Feb | D3: Mar | E3: April | G3: Month: | H3: April
B4: 1081.95 | C4: 619.12 | D4: 707.45 | E4: 756.59 | G4: Total | H4: =SUM(INDEX(B4:E16,0,MATCH(H3,B3:E3,0))) -> 12762.21
B5: 913.1 | C5: 730.87 | D5: 969.9 | E5: 609.61
B6: 1212.38 | C6: 840.17 | D6: 1222.96 | E6: 577.57
B7: 735.08 | C7: 560.68 | D7: 1096.3 | E7: 1070.39
B8: 685.48 | C8: 1225.95 | D8: 596.01 | E8: 1009.88
B9: 1088.7 | C9: 793.41 | D9: 1010.52 | E9: 1105.98
B10: 1169.79 | C10: 983.38 | D10: 1274.46 | E10: 1287.75
B11: 1248.8 | C11: 518.23 | D11: 946.49 | E11: 1199.03
B12: 1156.68 | C12: 578.71 | D12: 712.75 | E12: 1223
B13: 651.29 | C13: 1130.21 | D13: 637.21 | E13: 1285.61
B14: 810.08 | C14: 843.39 | D14: 735.55 | E14: 970.38
B15: 1212.19 | C15: 534.34 | D15: 1096.9 | E15: 953.78
B16: 549 | C16: 747.09 | D16: 723.65 | E16: 712.64
A18: 14) | B18: INDEX & MATCH to lookup whole row. A 0 (zero) in the column_num means take the whole row or "all the columns".
B20: Week | C20: Ratings Team Member 1 | D20: Ratings Team Member 2 | E20: Ratings Team Member 3 | F20: Ratings Team Member 4 | G20: Ratings Team Member 5 | H20: Ratings Team Member 6 | I20: Ratings Team Member 7 | J20: Ratings Team Member 8
B21: Week 1 | C21: 4.51 | D21: 4.11 | E21: 4.81 | F21: 2.78 | G21: 4.89 | H21: 5.1 | I21: 1.23 | J21: 2.26
B22: Week 2 | C22: 3.47 | D22: 1.04 | E22: 3.42 | F22: 4.7 | G22: 5.64 | H22: 1.1 | I22: 3.3 | J22: 5.08
B23: Week 3 | C23: 4.52 | D23: 3.45 | E23: 3.84 | F23: 2.76 | G23: 1.7 | H23: 1.61 | I23: 3.3 | J23: 4.92
B24: Week 4 | C24: 1.47 | D24: 1.99 | E24: 5.52 | F24: 2.34 | G24: 3.26 | H24: 1.7 | I24: 5.6 | J24: 4.09
B25: Week 5 | C25: 5.68 | D25: 3.72 | E25: 4.37 | F25: 2.46 | G25: 4.56 | H25: 1.59 | I25: 5.5 | J25: 1.2
B26: Week 6 | C26: 1.36 | D26: 3.52 | E26: 2.05 | F26: 1.61 | G26: 1.61 | H26: 2.21 | I26: 3.62 | J26: 4.72
B27: Week 7 | C27: 3.07 | D27: 3.38 | E27: 4.26 | F27: 5.25 | G27: 2.64 | H27: 2.59 | I27: 4.63 | J27: 5.52
B28: Week 8 | C28: 1.06 | D28: 5.04 | E28: 4.85 | F28: 3.54 | G28: 4.38 | H28: 4.21 | I28: 1.54 | J28: 3.66
B29: Week 9 | C29: 1.45 | D29: 3.77 | E29: 1.12 | F29: 5.21 | G29: 3.79 | H29: 1.87 | I29: 4.29 | J29: 2.1
B30: Week 10 | C30: 2.1 | D30: 3.34 | E30: 5.5 | F30: 3.11 | G30: 3.1 | H30: 1.57 | I30: 3.76 | J30: 1.81
B31: Week 11 | C31: 1.77 | D31: 4.63 | E31: 2.58 | F31: 5.3 | G31: 5.14 | H31: 2.1 | I31: 1.73 | J31: 4.8
B32: Week 12 | C32: 2.93 | D32: 2 | E32: 3.25 | F32: 3.41 | G32: 1.41 | H32: 4.77 | I32: 5.98 | J32: 4.78
B33: Week 13 | C33: 5.14 | D33: 4.03 | E33: 1.33 | F33: 4.47 | G33: 4.75 | H33: 3.88 | I33: 1.03 | J33: 4.34
B34: Week 14 | C34: 3.51 | D34: 3.56 | E34: 4.51 | F34: 5.27 | G34: 4.75 | H34: 5.78 | I34: 1.02 | J34: 1.74
B35: Week 15 | C35: 1.48 | D35: 5.37 | E35: 1.66 | F35: 3.99 | G35: 5.08 | H35: 5.5 | I35: 1.53 | J35: 1.55
B36: Week 16 | C36: 4.82 | D36: 5.14 | E36: 5.31 | F36: 5.64 | G36: 5.77 | H36: 2.73 | I36: 4.34 | J36: 5.32
B38: Week | C38: Week 3
C39: =SUM(INDEX($C$21:$J$36,MATCH(C38,B21:B36,0),0)) -> 26.1

Sheet M&I(4)
A1: 15) | B1: INDEX & MATCH to lookup first non-blank
A2: 16) | B2: When doing Exact Math lookup when there are duplicates, the first one is returned.
A4: First | B4: =A4&" Day" -> First Day | C4: Last | D4: =C4&" Day" -> Last Day | E4: Stock | F4: Day 1 | G4: Day 2 | H4: Day 3 | I4: Day 4 | J4: Day 5 | K4: Day 6 | L4: Day 7 | M4: Day 8 | N4: Day 9 | O4: Day 10 | P4: Day 11 | Q4: Day 12 | R4: Day 13 | S4: Day 14 | T4: Day 15
E5: XRJ stock | F5: 19.58 | G5: 19.72 | H5: 20.05 | I5: 20.97 | J5: 22.54 | K5: 23.38 | L5: 25.89 | M5: 24.02 | N5: 22.08 | O5: 23.29 | P5: 22.87 | Q5: 22.26 | R5: 21.01
E6: GML stock | F6: 22.08 | G6: 21.98 | H6: 24.19 | I6: 26.05 | J6: 26.12 | K6: 28.43 | L6: 30.85 | M6: 32.38 | N6: 34.93 | O6: 37.91 | P6: 39.5 | Q6: 41.53 | S6: 41.37
E7: YNO stock | G7: 16.24 | J7: 20.17 | L7: 22.48 | M7: 22.79 | Q7: 24.14
E8: OWH stock | G8: 14.75 | H8: 14.86 | I8: 15.13 | J8: 13.34 | K8: 15.31 | L8: 13.51 | M8: 14.32 | P8: 14.56 | Q8: 14.19 | S8: 15.06
E9: WFN stock | F9: 10.03 | G9: 9.11 | H9: 9.06 | I9: 8.46 | K9: 9.91 | L9: 12.42 | M9: 11.88 | N9: 11.1 | O9: 11.88 | P9: 14.05 | Q9: 16.04 | R9: 18.65 | S9: 19.08
E10: DUN stock | J10: 22.87 | K10: 21.2 | L10: 23.94 | M10: 22.41 | N10: 24.06 | O10: 23.04 | P10: 25.49
E11: LDX stock | J11: 32.82 | K11: 32.75 | M11: 33.06 | N11: 33.17 | O11: 34.38 | P11: 37.01 | Q11: 36.57 | R11: 39.08 | S11: 40.23 | T11: 39.3
E12: PZP stock | G12: 13.48 | H12: 13.68 | I12: 12.43 | J12: 13.92 | K12: 14.8 | M12: 15.73 | N12: 13.97 | P12: 11.85 | R12: 11.75 | S12: 10.97 | T12: 12.39
E13: BSN stock | L13: 23.26 | M13: 26.17 | O13: 26.65 | P13: 26 | Q13: 27.16 | R13: 30.13 | T13: 28.02
E14: OFI stock | N14: 24.38 | O14: 23.52 | P14: 25.38 | R14: 23.77
E15: WNX stock | L15: 23.29 | M15: 21.52 | N15: 19.67 | O15: 18.77 | P15: 21.42 | Q15: 22.19 | S15: 20.71
E16: CSR stock | F16: 8.94 | G16: 9.71 | H16: 8.13 | I16: 10.31 | J16: 10.4 | K16: 11.72 | L16: 14.42 | M16: 17.04 | N16: 15.67 | O16: 15.2 | P16: 16.86 | Q16: 18.29
E17: SRW stock | J17: 17.34 | K17: 19.36 | L17: 21.73 | M17: 23.07
E18: UQR stock | F18: 7.61 | H18: 9.29 | I18: 11.48 | J18: 10.24 | K18: 11.91 | M18: 14.37 | N18: 15.71 | Q18: 16.72 | R18: 15.7
E19: DBZ stock | G19: 28.57 | H19: 31.17 | K19: 32.66 | L19: 34.51 | N19: 38.95 | O19: 38.56 | P19: 36.85 | Q19: 39.61 | R19: 40.96 | S19: 40.84
E20: XFB stock | M20: 12.19 | N20: 14.78 | O20: 14.28 | P20: 15.49 | Q20: 15.43 | R20: 16.4 | S20: 17.69 | T20: 17.73
E21: FZM stock | F21: 16.17 | G21: 17.08 | H21: 17.77 | I21: 20.19 | J21: 22.27 | K21: 20.97 | L21: 22.32 | M21: 23.71 | N21: 26.3 | O21: 27.04 | Q21: 30.03 | R21: 29.64 | S21: 28.4
E22: HMM stock | K22: 23.44 | L22: 22.52 | M22: 24.83 | N22: 26.57 | O22: 27.25 | P22: 29.22 | R22: 31.73 | S22: 34.15 | T22: 34.6
E23: WGJ stock | F23: 30.37 | G23: 31.72 | I23: 31.1 | J23: 30.18 | K23: 29.13 | M23: 27.75 | N23: 29.17 | O23: 30.9

Sheet M&I(4an)
A1: 15) | B1: INDEX & MATCH to lookup first non-blank
A2: 16) | B2: When doing Exact Math lookup when there are duplicates, the first one is returned.
A4: First | B4: =A4&" Day" -> First Day | C4: Last | D4: =C4&" Day" -> Last Day | E4: Stock | F4: Day 1 | G4: Day 2 | H4: Day 3 | I4: Day 4 | J4: Day 5 | K4: Day 6 | L4: Day 7 | M4: Day 8 | N4: Day 9 | O4: Day 10 | P4: Day 11 | Q4: Day 12 | R4: Day 13 | S4: Day 14 | T4: Day 15
A5: =INDEX(F5:T5,MATCH(TRUE,F5:T5<>"",0)) -> 19.58 | B5: =INDEX(F$4:T$4,MATCH(TRUE,F5:T5<>"",0)) -> Day 1 | C5: =LOOKUP(100000,E5:T5) -> 21.01 | D5: =INDEX(F$4:T$4,MATCH(100000,F5:T5)) -> Day 13 | E5: XRJ stock | F5: 19.58 | G5: 19.72 | H5: 20.05 | I5: 20.97 | J5: 22.54 | K5: 23.38 | L5: 25.89 | M5: 24.02 | N5: 22.08 | O5: 23.29 | P5: 22.87 | Q5: 22.26 | R5: 21.01
A6: =INDEX(F6:T6,MATCH(TRUE,F6:T6<>"",0)) -> 22.08 | B6: =INDEX(F$4:T$4,MATCH(TRUE,F6:T6<>"",0)) -> Day 1 | C6: =LOOKUP(100000,E6:T6) -> 41.37 | D6: =INDEX(F$4:T$4,MATCH(100000,F6:T6)) -> Day 14 | E6: GML stock | F6: 22.08 | G6: 21.98 | H6: 24.19 | I6: 26.05 | J6: 26.12 | K6: 28.43 | L6: 30.85 | M6: 32.38 | N6: 34.93 | O6: 37.91 | P6: 39.5 | Q6: 41.53 | S6: 41.37
A7: =INDEX(F7:T7,MATCH(TRUE,F7:T7<>"",0)) -> 16.24 | B7: =INDEX(F$4:T$4,MATCH(TRUE,F7:T7<>"",0)) -> Day 2 | C7: 24.14 | D7: Day 12 | E7: YNO stock | G7: 16.24 | J7: 20.17 | L7: 22.48 | M7: 22.79 | Q7: 24.14
A8: =INDEX(F8:T8,MATCH(TRUE,F8:T8<>"",0)) -> 14.75 | B8: =INDEX(F$4:T$4,MATCH(TRUE,F8:T8<>"",0)) -> Day 2 | C8: 15.06 | D8: Day 14 | E8: OWH stock | G8: 14.75 | H8: 14.86 | I8: 15.13 | J8: 13.34 | K8: 15.31 | L8: 13.51 | M8: 14.32 | P8: 14.56 | Q8: 14.19 | S8: 15.06
A9: =INDEX(F9:T9,MATCH(TRUE,F9:T9<>"",0)) -> 10.03 | B9: =INDEX(F$4:T$4,MATCH(TRUE,F9:T9<>"",0)) -> Day 1 | C9: 19.08 | D9: Day 14 | E9: WFN stock | F9: 10.03 | G9: 9.11 | H9: 9.06 | I9: 8.46 | K9: 9.91 | L9: 12.42 | M9: 11.88 | N9: 11.1 | O9: 11.88 | P9: 14.05 | Q9: 16.04 | R9: 18.65 | S9: 19.08
A10: =INDEX(F10:T10,MATCH(TRUE,F10:T10<>"",0)) -> 22.87 | B10: =INDEX(F$4:T$4,MATCH(TRUE,F10:T10<>"",0)) -> Day 5 | C10: 25.49 | D10: Day 11 | E10: DUN stock | J10: 22.87 | K10: 21.2 | L10: 23.94 | M10: 22.41 | N10: 24.06 | O10: 23.04 | P10: 25.49
A11: =INDEX(F11:T11,MATCH(TRUE,F11:T11<>"",0)) -> 32.82 | B11: =INDEX(F$4:T$4,MATCH(TRUE,F11:T11<>"",0)) -> Day 5 | C11: 39.3 | D11: Day 15 | E11: LDX stock | J11: 32.82 | K11: 32.75 | M11: 33.06 | N11: 33.17 | O11: 34.38 | P11: 37.01 | Q11: 36.57 | R11: 39.08 | S11: 40.23 | T11: 39.3
A12: =INDEX(F12:T12,MATCH(TRUE,F12:T12<>"",0)) -> 13.48 | B12: =INDEX(F$4:T$4,MATCH(TRUE,F12:T12<>"",0)) -> Day 2 | C12: 12.39 | D12: Day 15 | E12: PZP stock | G12: 13.48 | H12: 13.68 | I12: 12.43 | J12: 13.92 | K12: 14.8 | M12: 15.73 | N12: 13.97 | P12: 11.85 | R12: 11.75 | S12: 10.97 | T12: 12.39
A13: =INDEX(F13:T13,MATCH(TRUE,F13:T13<>"",0)) -> 23.26 | B13: =INDEX(F$4:T$4,MATCH(TRUE,F13:T13<>"",0)) -> Day 7 | C13: 28.02 | D13: Day 15 | E13: BSN stock | L13: 23.26 | M13: 26.17 | O13: 26.65 | P13: 26 | Q13: 27.16 | R13: 30.13 | T13: 28.02
A14: =INDEX(F14:T14,MATCH(TRUE,F14:T14<>"",0)) -> 24.38 | B14: =INDEX(F$4:T$4,MATCH(TRUE,F14:T14<>"",0)) -> Day 9 | C14: 23.77 | D14: Day 13 | E14: OFI stock | N14: 24.38 | O14: 23.52 | P14: 25.38 | R14: 23.77
A15: =INDEX(F15:T15,MATCH(TRUE,F15:T15<>"",0)) -> 23.29 | B15: =INDEX(F$4:T$4,MATCH(TRUE,F15:T15<>"",0)) -> Day 7 | C15: 20.71 | D15: Day 14 | E15: WNX stock | L15: 23.29 | M15: 21.52 | N15: 19.67 | O15: 18.77 | P15: 21.42 | Q15: 22.19 | S15: 20.71
A16: =INDEX(F16:T16,MATCH(TRUE,F16:T16<>"",0)) -> 8.94 | B16: =INDEX(F$4:T$4,MATCH(TRUE,F16:T16<>"",0)) -> Day 1 | C16: 18.29 | D16: Day 12 | E16: CSR stock | F16: 8.94 | G16: 9.71 | H16: 8.13 | I16: 10.31 | J16: 10.4 | K16: 11.72 | L16: 14.42 | M16: 17.04 | N16: 15.67 | O16: 15.2 | P16: 16.86 | Q16: 18.29
A17: =INDEX(F17:T17,MATCH(TRUE,F17:T17<>"",0)) -> 17.34 | B17: =INDEX(F$4:T$4,MATCH(TRUE,F17:T17<>"",0)) -> Day 5 | C17: 23.07 | D17: Day 8 | E17: SRW stock | J17: 17.34 | K17: 19.36 | L17: 21.73 | M17: 23.07
A18: =INDEX(F18:T18,MATCH(TRUE,F18:T18<>"",0)) -> 7.61 | B18: =INDEX(F$4:T$4,MATCH(TRUE,F18:T18<>"",0)) -> Day 1 | C18: 15.7 | D18: Day 13 | E18: UQR stock | F18: 7.61 | H18: 9.29 | I18: 11.48 | J18: 10.24 | K18: 11.91 | M18: 14.37 | N18: 15.71 | Q18: 16.72 | R18: 15.7
A19: =INDEX(F19:T19,MATCH(TRUE,F19:T19<>"",0)) -> 28.57 | B19: =INDEX(F$4:T$4,MATCH(TRUE,F19:T19<>"",0)) -> Day 2 | C19: 40.84 | D19: Day 14 | E19: DBZ stock | G19: 28.57 | H19: 31.17 | K19: 32.66 | L19: 34.51 | N19: 38.95 | O19: 38.56 | P19: 36.85 | Q19: 39.61 | R19: 40.96 | S19: 40.84
A20: =INDEX(F20:T20,MATCH(TRUE,F20:T20<>"",0)) -> 12.19 | B20: =INDEX(F$4:T$4,MATCH(TRUE,F20:T20<>"",0)) -> Day 8 | C20: 17.73 | D20: Day 15 | E20: XFB stock | M20: 12.19 | N20: 14.78 | O20: 14.28 | P20: 15.49 | Q20: 15.43 | R20: 16.4 | S20: 17.69 | T20: 17.73
A21: =INDEX(F21:T21,MATCH(TRUE,F21:T21<>"",0)) -> 16.17 | B21: =INDEX(F$4:T$4,MATCH(TRUE,F21:T21<>"",0)) -> Day 1 | C21: 28.4 | D21: Day 14 | E21: FZM stock | F21: 16.17 | G21: 17.08 | H21: 17.77 | I21: 20.19 | J21: 22.27 | K21: 20.97 | L21: 22.32 | M21: 23.71 | N21: 26.3 | O21: 27.04 | Q21: 30.03 | R21: 29.64 | S21: 28.4
A22: =INDEX(F22:T22,MATCH(TRUE,F22:T22<>"",0)) -> 23.44 | B22: =INDEX(F$4:T$4,MATCH(TRUE,F22:T22<>"",0)) -> Day 6 | C22: 34.6 | D22: Day 15 | E22: HMM stock | K22: 23.44 | L22: 22.52 | M22: 24.83 | N22: 26.57 | O22: 27.25 | P22: 29.22 | R22: 31.73 | S22: 34.15 | T22: 34.6
A23: =INDEX(F23:T23,MATCH(TRUE,F23:T23<>"",0)) -> 30.37 | B23: =INDEX(F$4:T$4,MATCH(TRUE,F23:T23<>"",0)) -> Day 1 | C23: 30.9 | D23: Day 10 | E23: WGJ stock | F23: 30.37 | G23: 31.72 | I23: 31.1 | J23: 30.18 | K23: 29.13 | M23: 27.75 | N23: 29.17 | O23: 30.9

Sheet C(1)
A1: Date | B1: Sales Rep | C1: Sales | D1: Product | E1: Commission | R1: Rand:
A2: 2009-10-16 | B2: SR6 | C2: 5301 | D2: P2 | I2: Commissions for P1 | L2: Products and Table # | R2: =RANDBETWEEN(40100,40150) -> 2009-10-24 | S2: ="SR"&RANDBETWEEN(1,6) -> SR4 | T2: =RANDBETWEEN(VLOOKUP(U2,{"P1",0,5000;"P2",2000,10000;"P3",0,100},2),VLOOKUP(U2,{"P1",0,5000;"P2",2000,10000;"P3",0,100},3)) -> 4222 | U2: ="P"&INT(RAND()*3+1) -> P1 | V2: =VLOOKUP(T2,CHOOSE(VLOOKUP(U2,$L$3:$M$5,2,0),$I$3:$J$6,$I$9:$J$12,$I$15:$J$18),2) -> 0.03
A3: 2009-10-22 | B3: SR1 | C3: 49 | D3: P3 | I3: 0 | J3: 0 | L3: P1 | M3: 1
A4: 2009-10-18 | B4: SR2 | C4: 4684 | D4: P2 | I4: 100 | J4: 0.01 | L4: P2 | M4: 2
A5: 2009-11-14 | B5: SR5 | C5: 89 | D5: P3 | I5: 500 | J5: 0.02 | L5: P3 | M5: 3
A6: 2009-11-04 | B6: SR5 | C6: 42 | D6: P1 | I6: 1000 | J6: 0.03
A7: 2009-10-31 | B7: SR3 | C7: 3082 | D7: P1
A8: 2009-11-26 | B8: SR2 | C8: 3 | D8: P3 | I8: Commissions for P2
A9: 2009-10-24 | B9: SR2 | C9: 4847 | D9: P1 | I9: 0 | J9: 0
A10: 2009-10-28 | B10: SR2 | C10: 1170 | D10: P1 | I10: 4000 | J10: 0.02
A11: 2009-11-11 | B11: SR2 | C11: 59 | D11: P3 | I11: 8000 | J11: 0.03
A12: 2009-11-22 | B12: SR4 | C12: 5592 | D12: P2 | I12: 9000 | J12: 0.045
A13: 2009-10-16 | B13: SR1 | C13: 2765 | D13: P1
A14: 2009-11-19 | B14: SR2 | C14: 6889 | D14: P2 | I14: Commissions for P3
A15: 2009-11-18 | B15: SR6 | C15: 1756 | D15: P1 | I15: 0 | J15: 0
A16: 2009-10-18 | B16: SR4 | C16: 91 | D16: P3 | I16: 50 | J16: 0.005
A17: 2009-11-29 | B17: SR2 | C17: 3228 | D17: P2 | I17: 75 | J17: 0.01
A18: 2009-10-17 | B18: SR6 | C18: 4875 | D18: P1 | I18: 90 | J18: 0.015
A19: 2009-11-12 | B19: SR5 | C19: 9246 | D19: P2
A20: 2009-11-02 | B20: SR3 | C20: 50 | D20: P3
A21: 2009-11-28 | B21: SR3 | C21: 84 | D21: P3
A22: 2009-10-26 | B22: SR6 | C22: 1781 | D22: P1
A23: 2009-10-18 | B23: SR2 | C23: 3850 | D23: P1
A24: 2009-11-15 | B24: SR4 | C24: 1055 | D24: P1
A25: 2009-11-05 | B25: SR1 | C25: 4193 | D25: P1
A26: 2009-10-31 | B26: SR3 | C26: 34 | D26: P3
A27: 2009-11-30 | B27: SR6 | C27: 6017 | D27: P2
A28: 2009-10-22 | B28: SR3 | C28: 3420 | D28: P2
A29: 2009-11-01 | B29: SR4 | C29: 3203 | D29: P1
A30: 2009-11-18 | B30: SR3 | C30: 7477 | D30: P2
A31: 2009-12-03 | B31: SR2 | C31: 12 | D31: P3
A32: 2009-11-04 | B32: SR4 | C32: 2418 | D32: P2
A33: 2009-10-25 | B33: SR2 | C33: 1851 | D33: P1
A34: 2009-11-24 | B34: SR4 | C34: 3106 | D34: P2
A35: 2009-10-15 | B35: SR5 | C35: 994 | D35: P1
A36: 2009-11-30 | B36: SR6 | C36: 2 | D36: P3
A37: 2009-10-30 | B37: SR2 | C37: 29 | D37: P3
A38: 2009-11-10 | B38: SR4 | C38: 28 | D38: P3
A39: 2009-10-18 | B39: SR3 | C39: 73 | D39: P3
A40: 2009-11-26 | B40: SR2 | C40: 15 | D40: P3
A41: 2009-10-22 | B41: SR2 | C41: 6322 | D41: P2
A42: 2009-11-01 | B42: SR6 | C42: 11 | D42: P3
A43: 2009-10-23 | B43: SR1 | C43: 1620 | D43: P1
A44: 2009-10-27 | B44: SR4 | C44: 554 | D44: P1
A45: 2009-11-23 | B45: SR5 | C45: 3029 | D45: P2
A46: 2009-10-15 | B46: SR5 | C46: 1174 | D46: P1
A47: 2009-11-02 | B47: SR2 | C47: 3471 | D47: P2
A48: 2009-11-19 | B48: SR2 | C48: 26 | D48: P3
A49: 2009-12-03 | B49: SR5 | C49: 57 | D49: P3
A50: 2009-11-25 | B50: SR4 | C50: 3567 | D50: P1
A51: 2009-10-31 | B51: SR2 | C51: 3 | D51: P3
A52: 2009-10-28 | B52: SR6 | C52: 5715 | D52: P2
A53: 2009-11-04 | B53: SR3 | C53: 3396 | D53: P1
A54: 2009-11-29 | B54: SR4 | C54: 6054 | D54: P2
A55: 2009-11-23 | B55: SR3 | C55: 3770 | D55: P1
A56: 2009-10-16 | B56: SR5 | C56: 45 | D56: P3
A57: 2009-11-19 | B57: SR4 | C57: 6977 | D57: P2
A58: 2009-11-18 | B58: SR4 | C58: 1693 | D58: P1
A59: 2009-12-03 | B59: SR2 | C59: 4033 | D59: P2
A60: 2009-11-13 | B60: SR1 | C60: 4174 | D60: P2
A61: 2009-11-09 | B61: SR2 | C61: 51 | D61: P3
A62: 2009-11-26 | B62: SR3 | C62: 4719 | D62: P2
A63: 2009-11-28 | B63: SR4 | C63: 9167 | D63: P2
A64: 2009-10-21 | B64: SR2 | C64: 7517 | D64: P2
A65: 2009-12-01 | B65: SR2 | C65: 4427 | D65: P1
A66: 2009-10-14 | B66: SR2 | C66: 5589 | D66: P2
A67: 2009-12-02 | B67: SR3 | C67: 3273 | D67: P1
A68: 2009-10-29 | B68: SR5 | C68: 9278 | D68: P2
A69: 2009-11-26 | B69: SR2 | C69: 4026 | D69: P2
A70: 2009-11-16 | B70: SR3 | C70: 6955 | D70: P2
A71: 2009-11-02 | B71: SR3 | C71: 7566 | D71: P2
A72: 2009-11-03 | B72: SR6 | C72: 7191 | D72: P2
A73: 2009-10-20 | B73: SR1 | C73: 4631 | D73: P2
A74: 2009-11-13 | B74: SR1 | C74: 2195 | D74: P1
A75: 2009-10-14 | B75: SR5 | C75: 1755 | D75: P1
A76: 2009-11-17 | B76: SR4 | C76: 18 | D76: P3
A77: 2009-11-17 | B77: SR3 | C77: 87 | D77: P3
A78: 2009-10-29 | B78: SR1 | C78: 3965 | D78: P1
A79: 2009-10-25 | B79: SR1 | C79: 64 | D79: P3
A80: 2009-11-13 | B80: SR2 | C80: 5908 | D80: P2
A81: 2009-11-09 | B81: SR1 | C81: 1083 | D81: P1
A82: 2009-11-03 | B82: SR3 | C82: 72 | D82: P3
A83: 2009-11-29 | B83: SR6 | C83: 63 | D83: P3
A84: 2009-11-13 | B84: SR1 | C84: 8 | D84: P3
A85: 2009-10-25 | B85: SR6 | C85: 36 | D85: P3
A86: 2009-11-02 | B86: SR2 | C86: 3354 | D86: P1
A87: 2009-11-29 | B87: SR3 | C87: 1758 | D87: P1
A88: 2009-11-11 | B88: SR5 | C88: 430 | D88: P1
A89: 2009-10-14 | B89: SR6 | C89: 2525 | D89: P1
A90: 2009-10-30 | B90: SR1 | C90: 795 | D90: P1
A91: 2009-11-05 | B91: SR4 | C91: 6016 | D91: P2
A92: 2009-10-27 | B92: SR4 | C92: 3642 | D92: P2
A93: 2009-11-14 | B93: SR3 | C93: 9770 | D93: P2
A94: 2009-10-28 | B94: SR3 | C94: 2078 | D94: P2
A95: 2009-10-22 | B95: SR6 | C95: 45 | D95: P3
A96: 2009-11-01 | B96: SR5 | C96: 3858 | D96: P2
A97: 2009-11-25 | B97: SR1 | C97: 1941 | D97: P1
A98: 2009-10-17 | B98: SR5 | C98: 8029 | D98: P2
A99: 2009-11-23 | B99: SR6 | C99: 62 | D99: P3
A100: 2009-10-15 | B100: SR5 | C100: 2136 | D100: P1
A101: 2009-10-25 | B101: SR5 | C101: 50 | D101: P3
A102: 2009-11-15 | B102: SR4 | C102: 13 | D102: P3
A103: 2009-11-03 | B103: SR5 | C103: 58 | D103: P3
A104: 2009-10-20 | B104: SR1 | C104: 39 | D104: P3
A105: 2009-10-19 | B105: SR4 | C105: 505 | D105: P1
A106: 2009-12-01 | B106: SR6 | C106: 4104 | D106: P2
A107: 2009-11-23 | B107: SR1 | C107: 9460 | D107: P2
A108: 2009-11-05 | B108: SR1 | C108: 2498 | D108: P2
A109: 2009-10-23 | B109: SR1 | C109: 61 | D109: P3
A110: 2009-10-20 | B110: SR5 | C110: 9294 | D110: P2
A111: 2009-11-01 | B111: SR3 | C111: 20 | D111: P3
A112: 2009-10-22 | B112: SR2 | C112: 75 | D112: P3
A113: 2009-10-30 | B113: SR5 | C113: 4866 | D113: P2
A114: 2009-11-27 | B114: SR4 | C114: 4713 | D114: P1
A115: 2009-11-08 | B115: SR2 | C115: 1811 | D115: P1
A116: 2009-12-02 | B116: SR3 | C116: 3580 | D116: P2
A117: 2009-11-03 | B117: SR3 | C117: 24 | D117: P3
A118: 2009-11-21 | B118: SR5 | C118: 7794 | D118: P2
A119: 2009-12-01 | B119: SR3 | C119: 4392 | D119: P2
A120: 2009-11-30 | B120: SR2 | C120: 9168 | D120: P2
A121: 2009-11-13 | B121: SR4 | C121: 88 | D121: P3
A122: 2009-10-27 | B122: SR4 | C122: 4050 | D122: P2
A123: 2009-11-29 | B123: SR1 | C123: 89 | D123: P3
A124: 2009-11-21 | B124: SR6 | C124: 4847 | D124: P1
A125: 2009-11-29 | B125: SR1 | C125: 6899 | D125: P2
A126: 2009-11-19 | B126: SR2 | C126: 4817 | D126: P1
A127: 2009-11-01 | B127: SR2 | C127: 7729 | D127: P2
A128: 2009-11-15 | B128: SR4 | C128: 2078 | D128: P2
A129: 2009-11-14 | B129: SR1 | C129: 65 | D129: P3
A130: 2009-11-29 | B130: SR4 | C130: 32 | D130: P3
A131: 2009-11-03 | B131: SR1 | C131: 0 | D131: P3
A132: 2009-10-14 | B132: SR3 | C132: 9457 | D132: P2
A133: 2009-11-29 | B133: SR3 | C133: 967 | D133: P1
A134: 2009-10-16 | B134: SR2 | C134: 60 | D134: P3
A135: 2009-11-05 | B135: SR2 | C135: 397 | D135: P1
A136: 2009-11-18 | B136: SR5 | C136: 3638 | D136: P1
A137: 2009-11-23 | B137: SR6 | C137: 216 | D137: P1
A138: 2009-11-02 | B138: SR3 | C138: 3436 | D138: P1
A139: 2009-11-10 | B139: SR4 | C139: 4883 | D139: P1
A140: 2009-10-18 | B140: SR2 | C140: 2 | D140: P3
A141: 2009-11-12 | B141: SR5 | C141: 9607 | D141: P2
A142: 2009-11-28 | B142: SR3 | C142: 66 | D142: P3
A143: 2009-10-24 | B143: SR4 | C143: 3775 | D143: P1
A144: 2009-11-07 | B144: SR4 | C144: 8745 | D144: P2
A145: 2009-11-23 | B145: SR1 | C145: 99 | D145: P3
A146: 2009-11-23 | B146: SR6 | C146: 323 | D146: P1
A147: 2009-10-25 | B147: SR2 | C147: 7003 | D147: P2
A148: 2009-10-17 | B148: SR1 | C148: 6744 | D148: P2
A149: 2009-11-28 | B149: SR5 | C149: 2566 | D149: P1
A150: 2009-11-03 | B150: SR1 | C150: 4969 | D150: P1
A151: 2009-11-16 | B151: SR1 | C151: 2775 | D151: P2
A152: 2009-11-08 | B152: SR2 | C152: 77 | D152: P3
A153: 2009-10-20 | B153: SR5 | C153: 5 | D153: P3
A154: 2009-10-24 | B154: SR1 | C154: 5320 | D154: P2
A155: 2009-10-16 | B155: SR3 | C155: 47 | D155: P3
A156: 2009-11-20 | B156: SR2 | C156: 30 | D156: P3
A157: 2009-10-18 | B157: SR4 | C157: 4370 | D157: P1
A158: 2009-11-27 | B158: SR3 | C158: 6659 | D158: P2
A159: 2009-11-08 | B159: SR5 | C159: 7004 | D159: P2
A160: 2009-11-01 | B160: SR6 | C160: 2029 | D160: P1
A161: 2009-11-11 | B161: SR6 | C161: 6603 | D161: P2
A162: 2009-12-01 | B162: SR3 | C162: 73 | D162: P3
A163: 2009-11-12 | B163: SR3 | C163: 4665 | D163: P1
A164: 2009-10-25 | B164: SR6 | C164: 5034 | D164: P2
A165: 2009-11-05 | B165: SR6 | C165: 2738 | D165: P2
A166: 2009-11-25 | B166: SR5 | C166: 3319 | D166: P1
A167: 2009-11-16 | B167: SR6 | C167: 6594 | D167: P2
A168: 2009-11-03 | B168: SR5 | C168: 4606 | D168: P1
A169: 2009-10-27 | B169: SR5 | C169: 2088 | D169: P1
A170: 2009-11-15 | B170: SR1 | C170: 56 | D170: P3
A171: 2009-11-11 | B171: SR5 | C171: 66 | D171: P3
A172: 2009-11-08 | B172: SR3 | C172: 31 | D172: P3
A173: 2009-11-25 | B173: SR2 | C173: 8365 | D173: P2
A174: 2009-11-22 | B174: SR3 | C174: 68 | D174: P3
A175: 2009-11-06 | B175: SR6 | C175: 4107 | D175: P1
A176: 2009-11-05 | B176: SR3 | C176: 7134 | D176: P2
A177: 2009-11-13 | B177: SR6 | C177: 7277 | D177: P2
A178: 2009-11-19 | B178: SR5 | C178: 4730 | D178: P1
A179: 2009-10-31 | B179: SR3 | C179: 6457 | D179: P2
A180: 2009-11-19 | B180: SR5 | C180: 5423 | D180: P2
A181: 2009-12-02 | B181: SR1 | C181: 3775 | D181: P1
A182: 2009-11-04 | B182: SR4 | C182: 2394 | D182: P1
A183: 2009-11-17 | B183: SR6 | C183: 984 | D183: P1
A184: 2009-11-19 | B184: SR1 | C184: 4928 | D184: P1
A185: 2009-10-28 | B185: SR6 | C185: 2442 | D185: P1
A186: 2009-11-12 | B186: SR1 | C186: 8535 | D186: P2
A187: 2009-10-18 | B187: SR3 | C187: 4032 | D187: P1
A188: 2009-10-21 | B188: SR1 | C188: 2412 | D188: P1
A189: 2009-11-22 | B189: SR1 | C189: 0 | D189: P3
A190: 2009-10-22 | B190: SR2 | C190: 3573 | D190: P1
A191: 2009-11-01 | B191: SR5 | C191: 8145 | D191: P2
A192: 2009-12-02 | B192: SR5 | C192: 7109 | D192: P2
A193: 2009-10-16 | B193: SR1 | C193: 3015 | D193: P1
A194: 2009-11-29 | B194: SR5 | C194: 2557 | D194: P1
A195: 2009-10-18 | B195: SR5 | C195: 3316 | D195: P2
A196: 2009-11-26 | B196: SR4 | C196: 0 | D196: P3
A197: 2009-10-21 | B197: SR2 | C197: 60 | D197: P3
A198: 2009-11-02 | B198: SR5 | C198: 4285 | D198: P2
A199: 2009-11-05 | B199: SR4 | C199: 3209 | D199: P1
A200: 2009-10-20 | B200: SR2 | C200: 45 | D200: P3
... 475 more rows

Sheet C(1an)
A1: Date | B1: Sales Rep | C1: Sales | D1: Product | E1: Commission | R1: Rand:
A2: 2009-10-16 | B2: SR6 | C2: 5301 | D2: P2 | E2: =VLOOKUP(C2,CHOOSE(VLOOKUP(D2,$L$3:$M$5,2,0),$I$3:$J$6,$I$9:$J$12,$I$15:$J$18),2)*C2 -> 106.02 | I2: Commissions for P1 | L2: Products and Table # | R2: =RANDBETWEEN(40100,40150) -> 2009-11-28 | S2: ="SR"&RANDBETWEEN(1,6) -> SR3 | T2: =RANDBETWEEN(VLOOKUP(U2,{"P1",0,5000;"P2",2000,10000;"P3",0,100},2),VLOOKUP(U2,{"P1",0,5000;"P2",2000,10000;"P3",0,100},3)) -> 62 | U2: ="P"&INT(RAND()*3+1) -> P3 | V2: =VLOOKUP(T2,CHOOSE(VLOOKUP(U2,$L$3:$M$5,2,0),$I$3:$J$6,$I$9:$J$12,$I$15:$J$18),2) -> 0.005
A3: 2009-10-22 | B3: SR1 | C3: 49 | D3: P3 | E3: =VLOOKUP(C3,CHOOSE(VLOOKUP(D3,$L$3:$M$5,2,0),$I$3:$J$6,$I$9:$J$12,$I$15:$J$18),2)*C3 -> 0 | I3: 0 | J3: 0 | L3: P1 | M3: 1
A4: 2009-10-18 | B4: SR2 | C4: 4684 | D4: P2 | E4: 93.68 | I4: 100 | J4: 0.01 | L4: P2 | M4: 2
A5: 2009-11-14 | B5: SR5 | C5: 89 | D5: P3 | E5: 0.89 | I5: 500 | J5: 0.02 | L5: P3 | M5: 3
A6: 2009-11-04 | B6: SR5 | C6: 42 | D6: P1 | E6: 0 | I6: 1000 | J6: 0.03
A7: 2009-10-31 | B7: SR3 | C7: 3082 | D7: P1 | E7: 92.46
A8: 2009-11-26 | B8: SR2 | C8: 3 | D8: P3 | E8: 0 | I8: Commissions for P2
A9: 2009-10-24 | B9: SR2 | C9: 4847 | D9: P1 | E9: 145.41 | I9: 0 | J9: 0
A10: 2009-10-28 | B10: SR2 | C10: 1170 | D10: P1 | E10: 35.1 | I10: 4000 | J10: 0.02
A11: 2009-11-11 | B11: SR2 | C11: 59 | D11: P3 | E11: 0.295 | I11: 8000 | J11: 0.03
A12: 2009-11-22 | B12: SR4 | C12: 5592 | D12: P2 | E12: 111.84 | I12: 9000 | J12: 0.045
A13: 2009-10-16 | B13: SR1 | C13: 2765 | D13: P1 | E13: 82.95
A14: 2009-11-19 | B14: SR2 | C14: 6889 | D14: P2 | E14: 137.78 | I14: Commissions for P3
A15: 2009-11-18 | B15: SR6 | C15: 1756 | D15: P1 | E15: 52.68 | I15: 0 | J15: 0
A16: 2009-10-18 | B16: SR4 | C16: 91 | D16: P3 | E16: 1.365 | I16: 50 | J16: 0.005
A17: 2009-11-29 | B17: SR2 | C17: 3228 | D17: P2 | E17: 0 | I17: 75 | J17: 0.01
A18: 2009-10-17 | B18: SR6 | C18: 4875 | D18: P1 | E18: 146.25 | I18: 90 | J18: 0.015
A19: 2009-11-12 | B19: SR5 | C19: 9246 | D19: P2 | E19: 416.07
A20: 2009-11-02 | B20: SR3 | C20: 50 | D20: P3 | E20: 0.25
A21: 2009-11-28 | B21: SR3 | C21: 84 | D21: P3 | E21: 0.84
A22: 2009-10-26 | B22: SR6 | C22: 1781 | D22: P1 | E22: 53.43
A23: 2009-10-18 | B23: SR2 | C23: 3850 | D23: P1 | E23: 115.5
A24: 2009-11-15 | B24: SR4 | C24: 1055 | D24: P1 | E24: 31.65
A25: 2009-11-05 | B25: SR1 | C25: 4193 | D25: P1 | E25: 125.79
A26: 2009-10-31 | B26: SR3 | C26: 34 | D26: P3 | E26: 0
A27: 2009-11-30 | B27: SR6 | C27: 6017 | D27: P2 | E27: 120.34
A28: 2009-10-22 | B28: SR3 | C28: 3420 | D28: P2 | E28: 0
A29: 2009-11-01 | B29: SR4 | C29: 3203 | D29: P1 | E29: 96.09
A30: 2009-11-18 | B30: SR3 | C30: 7477 | D30: P2 | E30: 149.54
A31: 2009-12-03 | B31: SR2 | C31: 12 | D31: P3 | E31: 0
A32: 2009-11-04 | B32: SR4 | C32: 2418 | D32: P2 | E32: 0
A33: 2009-10-25 | B33: SR2 | C33: 1851 | D33: P1 | E33: 55.53
A34: 2009-11-24 | B34: SR4 | C34: 3106 | D34: P2 | E34: 0
A35: 2009-10-15 | B35: SR5 | C35: 994 | D35: P1 | E35: 19.88
A36: 2009-11-30 | B36: SR6 | C36: 2 | D36: P3 | E36: 0
A37: 2009-10-30 | B37: SR2 | C37: 29 | D37: P3 | E37: 0
A38: 2009-11-10 | B38: SR4 | C38: 28 | D38: P3 | E38: 0
A39: 2009-10-18 | B39: SR3 | C39: 73 | D39: P3 | E39: 0.365
A40: 2009-11-26 | B40: SR2 | C40: 15 | D40: P3 | E40: 0
A41: 2009-10-22 | B41: SR2 | C41: 6322 | D41: P2 | E41: 126.44
A42: 2009-11-01 | B42: SR6 | C42: 11 | D42: P3 | E42: 0
A43: 2009-10-23 | B43: SR1 | C43: 1620 | D43: P1 | E43: 48.6
A44: 2009-10-27 | B44: SR4 | C44: 554 | D44: P1 | E44: 11.08
A45: 2009-11-23 | B45: SR5 | C45: 3029 | D45: P2 | E45: 0
A46: 2009-10-15 | B46: SR5 | C46: 1174 | D46: P1 | E46: 35.22
A47: 2009-11-02 | B47: SR2 | C47: 3471 | D47: P2 | E47: 0
A48: 2009-11-19 | B48: SR2 | C48: 26 | D48: P3 | E48: 0
A49: 2009-12-03 | B49: SR5 | C49: 57 | D49: P3 | E49: 0.285
A50: 2009-11-25 | B50: SR4 | C50: 3567 | D50: P1 | E50: 107.01
A51: 2009-10-31 | B51: SR2 | C51: 3 | D51: P3 | E51: 0
A52: 2009-10-28 | B52: SR6 | C52: 5715 | D52: P2 | E52: 114.3
A53: 2009-11-04 | B53: SR3 | C53: 3396 | D53: P1 | E53: 101.88
A54: 2009-11-29 | B54: SR4 | C54: 6054 | D54: P2 | E54: 121.08
A55: 2009-11-23 | B55: SR3 | C55: 3770 | D55: P1 | E55: 113.1
A56: 2009-10-16 | B56: SR5 | C56: 45 | D56: P3 | E56: 0
A57: 2009-11-19 | B57: SR4 | C57: 6977 | D57: P2 | E57: 139.54
A58: 2009-11-18 | B58: SR4 | C58: 1693 | D58: P1 | E58: 50.79
A59: 2009-12-03 | B59: SR2 | C59: 4033 | D59: P2 | E59: 80.66
A60: 2009-11-13 | B60: SR1 | C60: 4174 | D60: P2 | E60: 83.48
A61: 2009-11-09 | B61: SR2 | C61: 51 | D61: P3 | E61: 0.255
A62: 2009-11-26 | B62: SR3 | C62: 4719 | D62: P2 | E62: 94.38
A63: 2009-11-28 | B63: SR4 | C63: 9167 | D63: P2 | E63: 412.515
A64: 2009-10-21 | B64: SR2 | C64: 7517 | D64: P2 | E64: 150.34
A65: 2009-12-01 | B65: SR2 | C65: 4427 | D65: P1 | E65: 132.81
A66: 2009-10-14 | B66: SR2 | C66: 5589 | D66: P2 | E66: 111.78
A67: 2009-12-02 | B67: SR3 | C67: 3273 | D67: P1 | E67: =VLOOKUP(C67,CHOOSE(VLOOKUP(D67,$L$3:$M$5,2,0),$I$3:$J$6,$I$9:$J$12,$I$15:$J$18),2)*C67 -> 98.19
A68: 2009-10-29 | B68: SR5 | C68: 9278 | D68: P2 | E68: 417.51
A69: 2009-11-26 | B69: SR2 | C69: 4026 | D69: P2 | E69: 80.52
A70: 2009-11-16 | B70: SR3 | C70: 6955 | D70: P2 | E70: 139.1
A71: 2009-11-02 | B71: SR3 | C71: 7566 | D71: P2 | E71: 151.32
A72: 2009-11-03 | B72: SR6 | C72: 7191 | D72: P2 | E72: 143.82
A73: 2009-10-20 | B73: SR1 | C73: 4631 | D73: P2 | E73: 92.62
A74: 2009-11-13 | B74: SR1 | C74: 2195 | D74: P1 | E74: 65.85
A75: 2009-10-14 | B75: SR5 | C75: 1755 | D75: P1 | E75: 52.65
A76: 2009-11-17 | B76: SR4 | C76: 18 | D76: P3 | E76: 0
A77: 2009-11-17 | B77: SR3 | C77: 87 | D77: P3 | E77: 0.87
A78: 2009-10-29 | B78: SR1 | C78: 3965 | D78: P1 | E78: 118.95
A79: 2009-10-25 | B79: SR1 | C79: 64 | D79: P3 | E79: 0.32
A80: 2009-11-13 | B80: SR2 | C80: 5908 | D80: P2 | E80: 118.16
A81: 2009-11-09 | B81: SR1 | C81: 1083 | D81: P1 | E81: 32.49
A82: 2009-11-03 | B82: SR3 | C82: 72 | D82: P3 | E82: 0.36
A83: 2009-11-29 | B83: SR6 | C83: 63 | D83: P3 | E83: 0.315
A84: 2009-11-13 | B84: SR1 | C84: 8 | D84: P3 | E84: 0
A85: 2009-10-25 | B85: SR6 | C85: 36 | D85: P3 | E85: 0
A86: 2009-11-02 | B86: SR2 | C86: 3354 | D86: P1 | E86: 100.62
A87: 2009-11-29 | B87: SR3 | C87: 1758 | D87: P1 | E87: 52.74
A88: 2009-11-11 | B88: SR5 | C88: 430 | D88: P1 | E88: 4.3
A89: 2009-10-14 | B89: SR6 | C89: 2525 | D89: P1 | E89: 75.75
A90: 2009-10-30 | B90: SR1 | C90: 795 | D90: P1 | E90: 15.9
A91: 2009-11-05 | B91: SR4 | C91: 6016 | D91: P2 | E91: 120.32
A92: 2009-10-27 | B92: SR4 | C92: 3642 | D92: P2 | E92: 0
A93: 2009-11-14 | B93: SR3 | C93: 9770 | D93: P2 | E93: 439.65
A94: 2009-10-28 | B94: SR3 | C94: 2078 | D94: P2 | E94: 0
A95: 2009-10-22 | B95: SR6 | C95: 45 | D95: P3 | E95: 0
A96: 2009-11-01 | B96: SR5 | C96: 3858 | D96: P2 | E96: 0
A97: 2009-11-25 | B97: SR1 | C97: 1941 | D97: P1 | E97: 58.23
A98: 2009-10-17 | B98: SR5 | C98: 8029 | D98: P2 | E98: 240.87
A99: 2009-11-23 | B99: SR6 | C99: 62 | D99: P3 | E99: 0.31
A100: 2009-10-15 | B100: SR5 | C100: 2136 | D100: P1 | E100: 64.08
A101: 2009-10-25 | B101: SR5 | C101: 50 | D101: P3 | E101: 0.25
A102: 2009-11-15 | B102: SR4 | C102: 13 | D102: P3 | E102: 0
A103: 2009-11-03 | B103: SR5 | C103: 58 | D103: P3 | E103: 0.29
A104: 2009-10-20 | B104: SR1 | C104: 39 | D104: P3 | E104: 0
A105: 2009-10-19 | B105: SR4 | C105: 505 | D105: P1 | E105: 10.1
A106: 2009-12-01 | B106: SR6 | C106: 4104 | D106: P2 | E106: 82.08
A107: 2009-11-23 | B107: SR1 | C107: 9460 | D107: P2 | E107: 425.7
A108: 2009-11-05 | B108: SR1 | C108: 2498 | D108: P2 | E108: 0
A109: 2009-10-23 | B109: SR1 | C109: 61 | D109: P3 | E109: 0.305
A110: 2009-10-20 | B110: SR5 | C110: 9294 | D110: P2 | E110: 418.23
A111: 2009-11-01 | B111: SR3 | C111: 20 | D111: P3 | E111: 0
A112: 2009-10-22 | B112: SR2 | C112: 75 | D112: P3 | E112: 0.75
A113: 2009-10-30 | B113: SR5 | C113: 4866 | D113: P2 | E113: 97.32
A114: 2009-11-27 | B114: SR4 | C114: 4713 | D114: P1 | E114: 141.39
A115: 2009-11-08 | B115: SR2 | C115: 1811 | D115: P1 | E115: 54.33
A116: 2009-12-02 | B116: SR3 | C116: 3580 | D116: P2 | E116: 0
A117: 2009-11-03 | B117: SR3 | C117: 24 | D117: P3 | E117: 0
A118: 2009-11-21 | B118: SR5 | C118: 7794 | D118: P2 | E118: 155.88
A119: 2009-12-01 | B119: SR3 | C119: 4392 | D119: P2 | E119: 87.84
A120: 2009-11-30 | B120: SR2 | C120: 9168 | D120: P2 | E120: 412.56
A121: 2009-11-13 | B121: SR4 | C121: 88 | D121: P3 | E121: 0.88
A122: 2009-10-27 | B122: SR4 | C122: 4050 | D122: P2 | E122: 81
A123: 2009-11-29 | B123: SR1 | C123: 89 | D123: P3 | E123: 0.89
A124: 2009-11-21 | B124: SR6 | C124: 4847 | D124: P1 | E124: 145.41
A125: 2009-11-29 | B125: SR1 | C125: 6899 | D125: P2 | E125: 137.98
A126: 2009-11-19 | B126: SR2 | C126: 4817 | D126: P1 | E126: 144.51
A127: 2009-11-01 | B127: SR2 | C127: 7729 | D127: P2 | E127: 154.58
A128: 2009-11-15 | B128: SR4 | C128: 2078 | D128: P2 | E128: 0
A129: 2009-11-14 | B129: SR1 | C129: 65 | D129: P3 | E129: 0.325
A130: 2009-11-29 | B130: SR4 | C130: 32 | D130: P3 | E130: 0
A131: 2009-11-03 | B131: SR1 | C131: 0 | D131: P3 | E131: =VLOOKUP(C131,CHOOSE(VLOOKUP(D131,$L$3:$M$5,2,0),$I$3:$J$6,$I$9:$J$12,$I$15:$J$18),2)*C131 -> 0
A132: 2009-10-14 | B132: SR3 | C132: 9457 | D132: P2 | E132: 425.565
A133: 2009-11-29 | B133: SR3 | C133: 967 | D133: P1 | E133: 19.34
A134: 2009-10-16 | B134: SR2 | C134: 60 | D134: P3 | E134: 0.3
A135: 2009-11-05 | B135: SR2 | C135: 397 | D135: P1 | E135: 3.97
A136: 2009-11-18 | B136: SR5 | C136: 3638 | D136: P1 | E136: 109.14
A137: 2009-11-23 | B137: SR6 | C137: 216 | D137: P1 | E137: 2.16
A138: 2009-11-02 | B138: SR3 | C138: 3436 | D138: P1 | E138: 103.08
A139: 2009-11-10 | B139: SR4 | C139: 4883 | D139: P1 | E139: 146.49
A140: 2009-10-18 | B140: SR2 | C140: 2 | D140: P3 | E140: 0
A141: 2009-11-12 | B141: SR5 | C141: 9607 | D141: P2 | E141: 432.315
A142: 2009-11-28 | B142: SR3 | C142: 66 | D142: P3 | E142: 0.33
A143: 2009-10-24 | B143: SR4 | C143: 3775 | D143: P1 | E143: 113.25
A144: 2009-11-07 | B144: SR4 | C144: 8745 | D144: P2 | E144: 262.35
A145: 2009-11-23 | B145: SR1 | C145: 99 | D145: P3 | E145: 1.485
A146: 2009-11-23 | B146: SR6 | C146: 323 | D146: P1 | E146: 3.23
A147: 2009-10-25 | B147: SR2 | C147: 7003 | D147: P2 | E147: 140.06
A148: 2009-10-17 | B148: SR1 | C148: 6744 | D148: P2 | E148: 134.88
A149: 2009-11-28 | B149: SR5 | C149: 2566 | D149: P1 | E149: 76.98
A150: 2009-11-03 | B150: SR1 | C150: 4969 | D150: P1 | E150: 149.07
A151: 2009-11-16 | B151: SR1 | C151: 2775 | D151: P2 | E151: 0
A152: 2009-11-08 | B152: SR2 | C152: 77 | D152: P3 | E152: 0.77
A153: 2009-10-20 | B153: SR5 | C153: 5 | D153: P3 | E153: 0
A154: 2009-10-24 | B154: SR1 | C154: 5320 | D154: P2 | E154: 106.4
A155: 2009-10-16 | B155: SR3 | C155: 47 | D155: P3 | E155: 0
A156: 2009-11-20 | B156: SR2 | C156: 30 | D156: P3 | E156: 0
A157: 2009-10-18 | B157: SR4 | C157: 4370 | D157: P1 | E157: 131.1
A158: 2009-11-27 | B158: SR3 | C158: 6659 | D158: P2 | E158: 133.18
A159: 2009-11-08 | B159: SR5 | C159: 7004 | D159: P2 | E159: 140.08
A160: 2009-11-01 | B160: SR6 | C160: 2029 | D160: P1 | E160: 60.87
A161: 2009-11-11 | B161: SR6 | C161: 6603 | D161: P2 | E161: 132.06
A162: 2009-12-01 | B162: SR3 | C162: 73 | D162: P3 | E162: 0.365
A163: 2009-11-12 | B163: SR3 | C163: 4665 | D163: P1 | E163: 139.95
A164: 2009-10-25 | B164: SR6 | C164: 5034 | D164: P2 | E164: 100.68
A165: 2009-11-05 | B165: SR6 | C165: 2738 | D165: P2 | E165: 0
A166: 2009-11-25 | B166: SR5 | C166: 3319 | D166: P1 | E166: 99.57
A167: 2009-11-16 | B167: SR6 | C167: 6594 | D167: P2 | E167: 131.88
A168: 2009-11-03 | B168: SR5 | C168: 4606 | D168: P1 | E168: 138.18
A169: 2009-10-27 | B169: SR5 | C169: 2088 | D169: P1 | E169: 62.64
A170: 2009-11-15 | B170: SR1 | C170: 56 | D170: P3 | E170: 0.28
A171: 2009-11-11 | B171: SR5 | C171: 66 | D171: P3 | E171: 0.33
A172: 2009-11-08 | B172: SR3 | C172: 31 | D172: P3 | E172: 0
A173: 2009-11-25 | B173: SR2 | C173: 8365 | D173: P2 | E173: 250.95
A174: 2009-11-22 | B174: SR3 | C174: 68 | D174: P3 | E174: 0.34
A175: 2009-11-06 | B175: SR6 | C175: 4107 | D175: P1 | E175: 123.21
A176: 2009-11-05 | B176: SR3 | C176: 7134 | D176: P2 | E176: 142.68
A177: 2009-11-13 | B177: SR6 | C177: 7277 | D177: P2 | E177: 145.54
A178: 2009-11-19 | B178: SR5 | C178: 4730 | D178: P1 | E178: 141.9
A179: 2009-10-31 | B179: SR3 | C179: 6457 | D179: P2 | E179: 129.14
A180: 2009-11-19 | B180: SR5 | C180: 5423 | D180: P2 | E180: 108.46
A181: 2009-12-02 | B181: SR1 | C181: 3775 | D181: P1 | E181: 113.25
A182: 2009-11-04 | B182: SR4 | C182: 2394 | D182: P1 | E182: 71.82
A183: 2009-11-17 | B183: SR6 | C183: 984 | D183: P1 | E183: 19.68
A184: 2009-11-19 | B184: SR1 | C184: 4928 | D184: P1 | E184: 147.84
A185: 2009-10-28 | B185: SR6 | C185: 2442 | D185: P1 | E185: 73.26
A186: 2009-11-12 | B186: SR1 | C186: 8535 | D186: P2 | E186: 256.05
A187: 2009-10-18 | B187: SR3 | C187: 4032 | D187: P1 | E187: 120.96
A188: 2009-10-21 | B188: SR1 | C188: 2412 | D188: P1 | E188: 72.36
A189: 2009-11-22 | B189: SR1 | C189: 0 | D189: P3 | E189: 0
A190: 2009-10-22 | B190: SR2 | C190: 3573 | D190: P1 | E190: 107.19
A191: 2009-11-01 | B191: SR5 | C191: 8145 | D191: P2 | E191: 244.35
A192: 2009-12-02 | B192: SR5 | C192: 7109 | D192: P2 | E192: 142.18
A193: 2009-10-16 | B193: SR1 | C193: 3015 | D193: P1 | E193: 90.45
A194: 2009-11-29 | B194: SR5 | C194: 2557 | D194: P1 | E194: 76.71
A195: 2009-10-18 | B195: SR5 | C195: 3316 | D195: P2 | E195: =VLOOKUP(C195,CHOOSE(VLOOKUP(D195,$L$3:$M$5,2,0),$I$3:$J$6,$I$9:$J$12,$I$15:$J$18),2)*C195 -> 0
A196: 2009-11-26 | B196: SR4 | C196: 0 | D196: P3 | E196: 0
A197: 2009-10-21 | B197: SR2 | C197: 60 | D197: P3 | E197: 0.3
A198: 2009-11-02 | B198: SR5 | C198: 4285 | D198: P2 | E198: 85.7
A199: 2009-11-05 | B199: SR4 | C199: 3209 | D199: P1 | E199: 96.27
A200: 2009-10-20 | B200: SR2 | C200: 45 | D200: P3 | E200: 0
... 475 more rows
